Publisher Label,Publisher URI,"Supplier","Net Amount £","Organisational Unit","Merchant Category Code","Purpose","Payment Date"
"Wolverhampton City Council","http://opendatacommunities.org/id/metropolitan-district-council/wolverhampton","Amazon UK Marketplace","25.42","EIP Locality 3","5942","Equipment - Purchase","29/06/2018"
"Wolverhampton City Council","http://opendatacommunities.org/id/metropolitan-district-council/wolverhampton","B & Q 1243","11.50","Learning Disabilities Management","5211","Equipment - R & M","29/06/2018"
"Wolverhampton City Council","http://opendatacommunities.org/id/metropolitan-district-council/wolverhampton","WWW.ADT.CO.UK","191.69","Head of Service - LAC","7393","Fixtures and Fittings - R&M","29/06/2018"
"Wolverhampton City Council","http://opendatacommunities.org/id/metropolitan-district-council/wolverhampton","Trainline","86.60","Head of Service - LAC","4112","Public Transport","29/06/2018"
"Wolverhampton City Council","http://opendatacommunities.org/id/metropolitan-district-council/wolverhampton","Trainline","184.60","Head of Service - LAC","4112","Public Transport","29/06/2018"
"Wolverhampton City Council","http://opendatacommunities.org/id/metropolitan-district-council/wolverhampton","Virgin Trains","-13.00","Road Safety","4112","Public Transport","29/06/2018"
"Wolverhampton City Council","http://opendatacommunities.org/id/metropolitan-district-council/wolverhampton","J VAN VLIET BIRMINGHAM","68.40","Creative Studies Delivery Area","5399","Materials","29/06/2018"
"Wolverhampton City Council","http://opendatacommunities.org/id/metropolitan-district-council/wolverhampton","Trainline","151.50","CIN/CP Social Work Unit - Area 4","4112","Public Transport","29/06/2018"
"Wolverhampton City Council","http://opendatacommunities.org/id/metropolitan-district-council/wolverhampton","Trainline","49.00","CIN/CP Social Work Unit - Area 4","4112","Section 17","29/06/2018"
"Wolverhampton City Council","http://opendatacommunities.org/id/metropolitan-district-council/wolverhampton","Trainline","52.50","CIN/CP Social Work Unit - Area 4","4112","Section 17","29/06/2018"
"Wolverhampton City Council","http://opendatacommunities.org/id/metropolitan-district-council/wolverhampton","THE CONSORTIUM/WMS","191.76","Education And Access","5968","Materials","29/06/2018"
"Wolverhampton City Council","http://opendatacommunities.org/id/metropolitan-district-council/wolverhampton","CATERING REFECTORY CIT","6.10","Economic Development","8220","Training Expenses","29/06/2018"
"Wolverhampton City Council","http://opendatacommunities.org/id/metropolitan-district-council/wolverhampton","SUK RETAIL LTD","8.32","Fostering Team & Allowances","5943","Stationery","29/06/2018"
"Wolverhampton City Council","http://opendatacommunities.org/id/metropolitan-district-council/wolverhampton","LOCKRITE LOCKSMITHS LT","142.50","Mental Health Assessment & Care Mgmt","1799","R&M - Departmental response (external)","29/06/2018"
"Wolverhampton City Council","http://opendatacommunities.org/id/metropolitan-district-council/wolverhampton","Trainline","58.50","DA Care Purchasing (Spot Placements)","4112","Public Transport","29/06/2018"
"Wolverhampton City Council","http://opendatacommunities.org/id/metropolitan-district-council/wolverhampton","01DIRECT LTD","84.99","Mental Health Assessment & Care Mgmt","4812","Comms - Mobile Telephones","29/06/2018"
"Wolverhampton City Council","http://opendatacommunities.org/id/metropolitan-district-council/wolverhampton","Amazon UK Marketplace","73.00","Aldersley Leisure Village","5942","Equipment - Purchase","29/06/2018"
"Wolverhampton City Council","http://opendatacommunities.org/id/metropolitan-district-council/wolverhampton","Amazon UK Marketplace","22.87","Aldersley Leisure Village","5942","Equipment - Purchase","29/06/2018"
"Wolverhampton City Council","http://opendatacommunities.org/id/metropolitan-district-council/wolverhampton","Amazon UK Marketplace","95.11","Strategic ICTS (ICT Serv Budget)","5942","Books","29/06/2018"
"Wolverhampton City Council","http://opendatacommunities.org/id/metropolitan-district-council/wolverhampton","ITUNES.COM/BILL","0.79","Strategic ICTS (ICT Serv Budget)","5735","Computing - Purchase of Software","29/06/2018"
"Wolverhampton City Council","http://opendatacommunities.org/id/metropolitan-district-council/wolverhampton","Amazon EU","128.32","Strategic ICTS (ICT Serv Budget)","5969","Equipment - Purchase","29/06/2018"
"Wolverhampton City Council","http://opendatacommunities.org/id/metropolitan-district-council/wolverhampton","LIDDELL ELECTRICAL DIS","59.75","Caretakers Community Centre","5065","Equipment - R & M","29/06/2018"
"Wolverhampton City Council","http://opendatacommunities.org/id/metropolitan-district-council/wolverhampton","GCL760R","373.33","Managing Director","7011","Services - Supplies & Services to users","29/06/2018"
"Wolverhampton City Council","http://opendatacommunities.org/id/metropolitan-district-council/wolverhampton","EB  AN ORCHESTRAL REND","-43.02","Foundation Studies","7399","Educ Trips, Holidays, Outings, Activity","29/06/2018"
"Wolverhampton City Council","http://opendatacommunities.org/id/metropolitan-district-council/wolverhampton","PREMIER INN","185.00","Art Gallery","3811","Services - Supplies & Services to users","29/06/2018"
"Wolverhampton City Council","http://opendatacommunities.org/id/metropolitan-district-council/wolverhampton","SPORTSDIRECT.COM","35.98","Cycling Schemes - Bikeability","5941","Equipment - Purchase","29/06/2018"
"Wolverhampton City Council","http://opendatacommunities.org/id/metropolitan-district-council/wolverhampton","COMBINED COURT","215.00","EIP Locality 1","9222","Grant Payments","29/06/2018"
"Wolverhampton City Council","http://opendatacommunities.org/id/metropolitan-district-council/wolverhampton","NOMINET UK","10.00","Technical Support","5734","Computing - Purchase of Software","29/06/2018"
"Wolverhampton City Council","http://opendatacommunities.org/id/metropolitan-district-council/wolverhampton","ASDA SUPERSTORE","41.67","EIP Locality 3","5411","Grant Payments","29/06/2018"
"Wolverhampton City Council","http://opendatacommunities.org/id/metropolitan-district-council/wolverhampton","CardtronicsUK","100.00","EIP Locality 3","6011","Grant Payments","29/06/2018"
"Wolverhampton City Council","http://opendatacommunities.org/id/metropolitan-district-council/wolverhampton","Trainline","10.35","LAC Education Team (LACE)","4112","Public Transport","29/06/2018"
"Wolverhampton City Council","http://opendatacommunities.org/id/metropolitan-district-council/wolverhampton","Trainline","-33.70","LAC Transitions Team","4112","Client Allowances","29/06/2018"
"Wolverhampton City Council","http://opendatacommunities.org/id/metropolitan-district-council/wolverhampton","ASDA SUPERSTORE","26.08","Starting and Developing Well(0-24 group)","5411","Provisions (Not for resale)","29/06/2018"
"Wolverhampton City Council","http://opendatacommunities.org/id/metropolitan-district-council/wolverhampton","PREMIER INN","67.50","Adoption and Residence Team & Allowances","3811","Services - Fees and Charges","29/06/2018"
"Wolverhampton City Council","http://opendatacommunities.org/id/metropolitan-district-council/wolverhampton","CURRYS ONLINE","208.32","Technician","5732","Equipment - Purchase","29/06/2018"
"Wolverhampton City Council","http://opendatacommunities.org/id/metropolitan-district-council/wolverhampton","GO CARZ","5.70","CIN/CP Social Work Unit - Area 5","4121","Section 17","29/06/2018"
"Wolverhampton City Council","http://opendatacommunities.org/id/metropolitan-district-council/wolverhampton","ROYAL BK OF SCOTLAND","250.00","CIN/CP Social Work Unit - Area 6","6011","Financial Assistance In Exceptional Circ","29/06/2018"
"Wolverhampton City Council","http://opendatacommunities.org/id/metropolitan-district-council/wolverhampton","TESCO STORES 5194","55.55","Towers Outdoor Education Centre","5411","Provisions (Not for resale)","29/06/2018"
"Wolverhampton City Council","http://opendatacommunities.org/id/metropolitan-district-council/wolverhampton","WWW.WALLACECAMERON.COM","41.96","Towers Outdoor Education Centre","5047","Fixtures and Fittings - Purchases","29/06/2018"
"Wolverhampton City Council","http://opendatacommunities.org/id/metropolitan-district-council/wolverhampton","AMAZON SVCS EU-UK AMAZ","6.87","Towers Outdoor Education Centre","5942","Equipment - Purchase","29/06/2018"
"Wolverhampton City Council","http://opendatacommunities.org/id/metropolitan-district-council/wolverhampton","Amazon UK Marketplace","14.16","Towers Outdoor Education Centre","5942","Equipment - Purchase","29/06/2018"
"Wolverhampton City Council","http://opendatacommunities.org/id/metropolitan-district-council/wolverhampton","NETFLIX.COM","5.99","Technician","4899","Comms - Telephone Rental","28/06/2018"
"Wolverhampton City Council","http://opendatacommunities.org/id/metropolitan-district-council/wolverhampton","WM MORRISON FOOD.COM","51.23","Discretionary Fund","5411","Materials","28/06/2018"
"Wolverhampton City Council","http://opendatacommunities.org/id/metropolitan-district-council/wolverhampton","WOLVERHAMPTON CC","3.33","Headstart Phase 3","7523","Parking Fees","28/06/2018"
"Wolverhampton City Council","http://opendatacommunities.org/id/metropolitan-district-council/wolverhampton","WOLVERHAMPTON CC","3.33","Headstart Phase 3","7523","Parking Fees","28/06/2018"
"Wolverhampton City Council","http://opendatacommunities.org/id/metropolitan-district-council/wolverhampton","CT WOLVERHAMPTON","95.83","LAC Transitions Team","8398","Client Allowances","28/06/2018"
"Wolverhampton City Council","http://opendatacommunities.org/id/metropolitan-district-council/wolverhampton","000002200500000","250.00","Childrens with Disabilities Team","6011","No Recourse to Public Funds","28/06/2018"
"Wolverhampton City Council","http://opendatacommunities.org/id/metropolitan-district-council/wolverhampton","B&M RETAIL LTD","159.94","LAC Transitions Team","5310","Client Allowances","28/06/2018"
"Wolverhampton City Council","http://opendatacommunities.org/id/metropolitan-district-council/wolverhampton","Virgin Trains","41.40","Adoption and Residence Team & Allowances","4112","Public Transport","28/06/2018"
"Wolverhampton City Council","http://opendatacommunities.org/id/metropolitan-district-council/wolverhampton","Virgin Trains","33.00","Adoption and Residence Team & Allowances","4112","Public Transport","28/06/2018"
"Wolverhampton City Council","http://opendatacommunities.org/id/metropolitan-district-council/wolverhampton","Virgin Trains","116.20","Adoption and Residence Team & Allowances","4112","Public Transport","28/06/2018"
"Wolverhampton City Council","http://opendatacommunities.org/id/metropolitan-district-council/wolverhampton","RS COMPONENTS","23.10","Central Baths","5065","Equipment - Purchase","28/06/2018"
"Wolverhampton City Council","http://opendatacommunities.org/id/metropolitan-district-council/wolverhampton","B&M RETAIL LTD","131.46","LAC Transitions Team","5310","Client Allowances","28/06/2018"
"Wolverhampton City Council","http://opendatacommunities.org/id/metropolitan-district-council/wolverhampton","Virgin Trains","87.80","Black Country Transport Director","4112","Public Transport","28/06/2018"
"Wolverhampton City Council","http://opendatacommunities.org/id/metropolitan-district-council/wolverhampton","SAINSBURYS SACAT (2340","19.85","EIP Locality 4","5411","Provisions (Not for resale)","28/06/2018"
"Wolverhampton City Council","http://opendatacommunities.org/id/metropolitan-district-council/wolverhampton","Amazon UK Marketplace","247.07","Ground Maintenance East","5942","Books","28/06/2018"
"Wolverhampton City Council","http://opendatacommunities.org/id/metropolitan-district-council/wolverhampton","Amazon UK Marketplace","247.07","Ground Maintenance East","5942","Books","28/06/2018"
"Wolverhampton City Council","http://opendatacommunities.org/id/metropolitan-district-council/wolverhampton","WOLVERHAMPTON CC","3.33","IMPACT","7523","Car Allowances","28/06/2018"
"Wolverhampton City Council","http://opendatacommunities.org/id/metropolitan-district-council/wolverhampton","Amazon UK Marketplace","15.78","Aldersley Leisure Village","5942","Equipment - Purchase","28/06/2018"
"Wolverhampton City Council","http://opendatacommunities.org/id/metropolitan-district-council/wolverhampton","Amazon UK Marketplace","20.96","Aldersley Leisure Village","5942","Equipment - Purchase","28/06/2018"
"Wolverhampton City Council","http://opendatacommunities.org/id/metropolitan-district-council/wolverhampton","Amazon UK Marketplace","24.96","Aldersley Leisure Village","5942","Equipment - Purchase","28/06/2018"
"Wolverhampton City Council","http://opendatacommunities.org/id/metropolitan-district-council/wolverhampton","ARGOS RETAIL GROUP","139.99","Old Hall Street Main","5310","Equipment - Purchase","28/06/2018"
"Wolverhampton City Council","http://opendatacommunities.org/id/metropolitan-district-council/wolverhampton","WOLVERHAMPTON TO","7.80","City Direct","4112","Public Transport","28/06/2018"
"Wolverhampton City Council","http://opendatacommunities.org/id/metropolitan-district-council/wolverhampton","WOLVERHAMPTON CC","3.33","Cemeteries","7523","Car Allowances","28/06/2018"
"Wolverhampton City Council","http://opendatacommunities.org/id/metropolitan-district-council/wolverhampton","POST OFFICE COUNTER","62.50","Intensive Family Support Team","9402","Comms - Postage","28/06/2018"
"Wolverhampton City Council","http://opendatacommunities.org/id/metropolitan-district-council/wolverhampton","WP-CENTRAL TAXIS L","64.00","LAC Team","4121","Client Transport","28/06/2018"
"Wolverhampton City Council","http://opendatacommunities.org/id/metropolitan-district-council/wolverhampton","ASDA GEORGE COM LEEDS","98.96","EIP Locality 5","5411","Grant Payments","28/06/2018"
"Wolverhampton City Council","http://opendatacommunities.org/id/metropolitan-district-council/wolverhampton","Virgin Trains","29.00","Art Gallery","4112","Public Transport","28/06/2018"
"Wolverhampton City Council","http://opendatacommunities.org/id/metropolitan-district-council/wolverhampton","HOMEBASE LTD 103","9.12","Community Enablement","5211","R4007","28/06/2018"
"Wolverhampton City Council","http://opendatacommunities.org/id/metropolitan-district-council/wolverhampton","THE GRANARY","105.42","Head of Service - CINCP","7991","Educ Trips, Holidays, Outings, Activity","28/06/2018"
"Wolverhampton City Council","http://opendatacommunities.org/id/metropolitan-district-council/wolverhampton","DVSA MOT COMP 2","205.00","Fleet Management","9399","MOT & HGV Tests","28/06/2018"
"Wolverhampton City Council","http://opendatacommunities.org/id/metropolitan-district-council/wolverhampton","Trainline","34.75","Inclusion Support","4112","Training Expenses","28/06/2018"
"Wolverhampton City Council","http://opendatacommunities.org/id/metropolitan-district-council/wolverhampton","Trainline","66.50","Inclusion Support","4112","Training Expenses","28/06/2018"
"Wolverhampton City Council","http://opendatacommunities.org/id/metropolitan-district-council/wolverhampton","AER LINGUS","422.98","CIN/CP Social Work Unit - Area 8","3043","Public Transport","28/06/2018"
"Wolverhampton City Council","http://opendatacommunities.org/id/metropolitan-district-council/wolverhampton","CARVER/WOLVERHAMPTON/L","39.06","Northicote Farm","5211","Materials","28/06/2018"
"Wolverhampton City Council","http://opendatacommunities.org/id/metropolitan-district-council/wolverhampton","LOYD 37 CHURCH STREET","220.00","EIP Locality 8","6011","Grant Payments","27/06/2018"
"Wolverhampton City Council","http://opendatacommunities.org/id/metropolitan-district-council/wolverhampton","ARGOS LTD","28.32","LAC Transitions Team","5310","Client Allowances","27/06/2018"
"Wolverhampton City Council","http://opendatacommunities.org/id/metropolitan-district-council/wolverhampton","POST OFFICE COUNTER","8.60","Adoption and Residence Team & Allowances","9402","Comms - Postage","27/06/2018"
"Wolverhampton City Council","http://opendatacommunities.org/id/metropolitan-district-council/wolverhampton","TESCO STORES 5194","215.17","Towers Outdoor Education Centre","5411","Provisions (Not for resale)","27/06/2018"
"Wolverhampton City Council","http://opendatacommunities.org/id/metropolitan-district-council/wolverhampton","CHEMSOL CYMRU LTD","207.46","Towers Outdoor Education Centre","5199","Fixtures and Fittings - Purchases","27/06/2018"
"Wolverhampton City Council","http://opendatacommunities.org/id/metropolitan-district-council/wolverhampton","SP   SASCO PLANNERS","21.78","Towers Outdoor Education Centre","5111","Equipment - Purchase","27/06/2018"
"Wolverhampton City Council","http://opendatacommunities.org/id/metropolitan-district-council/wolverhampton","BLOXWICH  SST","7.20","Economic Development","4112","Public Transport","27/06/2018"
"Wolverhampton City Council","http://opendatacommunities.org/id/metropolitan-district-council/wolverhampton","WWW.TONERGIANT.CO.UK","37.22","Headstart - Young People Engagement","5943","Stationery","27/06/2018"
"Wolverhampton City Council","http://opendatacommunities.org/id/metropolitan-district-council/wolverhampton","WWW.ARGOS.CO.UK","202.94","The Maltings","5310","Equipment - Purchase","27/06/2018"
"Wolverhampton City Council","http://opendatacommunities.org/id/metropolitan-district-council/wolverhampton","POST OFFICE COUNTER","125.00","LAC Education Team (LACE)","9402","Comms - Postage","27/06/2018"
"Wolverhampton City Council","http://opendatacommunities.org/id/metropolitan-district-council/wolverhampton","Trainline","8.35","Youth Offending Team","4112","Public Transport","27/06/2018"
"Wolverhampton City Council","http://opendatacommunities.org/id/metropolitan-district-council/wolverhampton","UNTOUCHABLES","10.58","Cemeteries","5231","Materials","27/06/2018"
"Wolverhampton City Council","http://opendatacommunities.org/id/metropolitan-district-council/wolverhampton","Amazon UK Marketplace","9.88","Strategic ICTS (ICT Serv Budget)","5942","Books","27/06/2018"
"Wolverhampton City Council","http://opendatacommunities.org/id/metropolitan-district-council/wolverhampton","TIMPSON LTD","6.50","EIP Locality 5","7251","Equipment - Purchase","27/06/2018"
"Wolverhampton City Council","http://opendatacommunities.org/id/metropolitan-district-council/wolverhampton","MACHINE MART LTD","7.19","Central Costs","5722","Equipment - Purchase","27/06/2018"
"Wolverhampton City Council","http://opendatacommunities.org/id/metropolitan-district-council/wolverhampton","LIDL UK WOLVERHAMPTON","5.47","Community Enablement","5411","Materials","27/06/2018"
"Wolverhampton City Council","http://opendatacommunities.org/id/metropolitan-district-council/wolverhampton","WICKES","5.42","Community Enablement","5211","Materials","27/06/2018"
"Wolverhampton City Council","http://opendatacommunities.org/id/metropolitan-district-council/wolverhampton","Trainline","77.50","School Improvement","4112","Public Transport","27/06/2018"
"Wolverhampton City Council","http://opendatacommunities.org/id/metropolitan-district-council/wolverhampton","POST OFFICE COUNTER","15.00","EIP Locality 1","9402","Comms - Postage","27/06/2018"
"Wolverhampton City Council","http://opendatacommunities.org/id/metropolitan-district-council/wolverhampton","PO WILLENHALL RD 5497","10.00","EIP Locality 1","6011","Financial Assistance In Exceptional Circ","27/06/2018"
"Wolverhampton City Council","http://opendatacommunities.org/id/metropolitan-district-council/wolverhampton","CARVER/WOLVERHAMPTON/L","9.13","Culwell Street Depot","5211","R&M - Departmental planned (external)","27/06/2018"
"Wolverhampton City Council","http://opendatacommunities.org/id/metropolitan-district-council/wolverhampton","WEST MID TRAVEL","446.90","Community Enablement","4131","Public Transport","27/06/2018"
"Wolverhampton City Council","http://opendatacommunities.org/id/metropolitan-district-council/wolverhampton","PREMIER INN","90.42","SEN Sensory Inclusion","3811","Equipment - Purchase","27/06/2018"
"Wolverhampton City Council","http://opendatacommunities.org/id/metropolitan-district-council/wolverhampton","Amazon UK Marketplace","7.80","Global Budgets","5942","Books","27/06/2018"
"Wolverhampton City Council","http://opendatacommunities.org/id/metropolitan-district-council/wolverhampton","WWW.IKEA.COM","240.50","Children & Young People Support Costs","5712","Client Allowances","27/06/2018"
"Wolverhampton City Council","http://opendatacommunities.org/id/metropolitan-district-council/wolverhampton","Amazon EU","30.41","Car Parks Operational Staff","5969","Equipment - Purchase","27/06/2018"
"Wolverhampton City Council","http://opendatacommunities.org/id/metropolitan-district-council/wolverhampton","GRO HM PASSPORT OFFICE","-23.40","Head of Service - CINCP","9399","Services - Professional Fees","27/06/2018"
"Wolverhampton City Council","http://opendatacommunities.org/id/metropolitan-district-council/wolverhampton","THE COAL AUTHORITY","95.16","Disposal Costs","9399","Services - Professional Fees","27/06/2018"
"Wolverhampton City Council","http://opendatacommunities.org/id/metropolitan-district-council/wolverhampton","ARGOS LTD","99.96","Inclusion Support","5310","Training Expenses","27/06/2018"
"Wolverhampton City Council","http://opendatacommunities.org/id/metropolitan-district-council/wolverhampton","Trainline","39.50","CIN/CP Social Work Unit - Area 5","4112","No Recourse to Public Funds","27/06/2018"
"Wolverhampton City Council","http://opendatacommunities.org/id/metropolitan-district-council/wolverhampton","Transport CARHIRE","80.14","CIN/CP Social Work Unit - Area 8","7512","Car Allowances","27/06/2018"
"Wolverhampton City Council","http://opendatacommunities.org/id/metropolitan-district-council/wolverhampton","AMAZON SVCS EU-UK AMAZ","57.99","Global Budgets","5942","Books","27/06/2018"
"Wolverhampton City Council","http://opendatacommunities.org/id/metropolitan-district-council/wolverhampton","REGISTRARS OFFICE","20.00","Adoption and Residence Team & Allowances","8299","Services - Fees and Charges","27/06/2018"
"Wolverhampton City Council","http://opendatacommunities.org/id/metropolitan-district-council/wolverhampton","JAYCEE TROPHIES","204.90","Headstart - Young People Engagement","5945","Equipment - Purchase","26/06/2018"
"Wolverhampton City Council","http://opendatacommunities.org/id/metropolitan-district-council/wolverhampton","GO CARZ","37.50","LAC Education Team (LACE)","4121","Client Transport","26/06/2018"
"Wolverhampton City Council","http://opendatacommunities.org/id/metropolitan-district-council/wolverhampton","ASDA SUPERSTORE","12.50","Youth Offending Team","5411","Provisions (Not for resale)","26/06/2018"
"Wolverhampton City Council","http://opendatacommunities.org/id/metropolitan-district-council/wolverhampton","FlybeEW41 EW41EQ","248.34","Admin & Support","4511","Public Transport","26/06/2018"
"Wolverhampton City Council","http://opendatacommunities.org/id/metropolitan-district-council/wolverhampton","34SP.com Ltd","7.50","Early Years & Universal Service","4816","Computing - Purchase of Software","26/06/2018"
"Wolverhampton City Council","http://opendatacommunities.org/id/metropolitan-district-council/wolverhampton","AMAZON SVCS EU-UK AMAZ","133.32","Strategic ICTS (ICT Serv Budget)","5942","Equipment - Purchase","26/06/2018"
"Wolverhampton City Council","http://opendatacommunities.org/id/metropolitan-district-council/wolverhampton","GO CARZ","37.50","LAC Education Team (LACE)","4121","Client Transport","26/06/2018"
"Wolverhampton City Council","http://opendatacommunities.org/id/metropolitan-district-council/wolverhampton","Amazon EU","10.82","Strategic ICTS (ICT Serv Budget)","5969","Equipment - Purchase","26/06/2018"
"Wolverhampton City Council","http://opendatacommunities.org/id/metropolitan-district-council/wolverhampton","WWW.IDENTIPRO.CO.UK","1499.14","Strategic ICTS (ICT Serv Budget)","5722","Equipment - Purchase","26/06/2018"
"Wolverhampton City Council","http://opendatacommunities.org/id/metropolitan-district-council/wolverhampton","ASDA SUPERSTORE","7.50","EIP Locality 5","5411","Equipment - Purchase","26/06/2018"
"Wolverhampton City Council","http://opendatacommunities.org/id/metropolitan-district-council/wolverhampton","GO CARZ","-21.00","LAC Team","4121","Client Transport","26/06/2018"
"Wolverhampton City Council","http://opendatacommunities.org/id/metropolitan-district-council/wolverhampton","WWW.SIGNATURE.ORG.UK","50.00","Language Studies Delivery Area","8299","Training Expenses","26/06/2018"
"Wolverhampton City Council","http://opendatacommunities.org/id/metropolitan-district-council/wolverhampton","STAR EDITIONS","445.76","Art Gallery Shop","5947","Equipment - Purchase","26/06/2018"
"Wolverhampton City Council","http://opendatacommunities.org/id/metropolitan-district-council/wolverhampton","REGISTRARS OFFICE","20.00","CIN/CP Social Work Unit - Area 6","8299","Section 17","26/06/2018"
"Wolverhampton City Council","http://opendatacommunities.org/id/metropolitan-district-council/wolverhampton","Virgin Trains","202.00","Fostering Team & Allowances","4112","Public Transport","26/06/2018"
"Wolverhampton City Council","http://opendatacommunities.org/id/metropolitan-district-council/wolverhampton","SAINSBURYS","100.00","Headstart - Young People Engagement","6011","Financial Assistance In Exceptional Circ","26/06/2018"
"Wolverhampton City Council","http://opendatacommunities.org/id/metropolitan-district-council/wolverhampton","EPSON STORE UK","19.41","The Maltings","5734","Equipment - Purchase","26/06/2018"
"Wolverhampton City Council","http://opendatacommunities.org/id/metropolitan-district-council/wolverhampton","GO CARZ","21.00","LAC Team","4121","Client Transport","26/06/2018"
"Wolverhampton City Council","http://opendatacommunities.org/id/metropolitan-district-council/wolverhampton","LIDL UK WOLVERHAMPTON","26.11","Community Enablement","5411","Materials","26/06/2018"
"Wolverhampton City Council","http://opendatacommunities.org/id/metropolitan-district-council/wolverhampton","ICELAND","12.17","Community Enablement","5411","Materials","26/06/2018"
"Wolverhampton City Council","http://opendatacommunities.org/id/metropolitan-district-council/wolverhampton","E01510300000000","33.33","Emergency Duty Team","6011","Financial Assistance In Exceptional Circ","26/06/2018"
"Wolverhampton City Council","http://opendatacommunities.org/id/metropolitan-district-council/wolverhampton","ASDA SUPERSTORE","23.75","Community Enablement","5411","Materials","26/06/2018"
"Wolverhampton City Council","http://opendatacommunities.org/id/metropolitan-district-council/wolverhampton","WIX.COM","46.57","Technical Support","5968","Subscriptions","26/06/2018"
"Wolverhampton City Council","http://opendatacommunities.org/id/metropolitan-district-council/wolverhampton","LION PICTURE FRAMING S","125.80","Education And Access","5999","Equipment - Purchase","26/06/2018"
"Wolverhampton City Council","http://opendatacommunities.org/id/metropolitan-district-council/wolverhampton","Virgin Trains","140.60","Strategic Asset Management - General","4112","Public Transport","26/06/2018"
"Wolverhampton City Council","http://opendatacommunities.org/id/metropolitan-district-council/wolverhampton","Trainline","68.40","Service Director Adults","4112","Public Transport","26/06/2018"
"Wolverhampton City Council","http://opendatacommunities.org/id/metropolitan-district-council/wolverhampton","GO CARZ","49.80","CIN/CP Social Work Unit - Area 5","4121","Section 17","26/06/2018"
"Wolverhampton City Council","http://opendatacommunities.org/id/metropolitan-district-council/wolverhampton","IZ  D & K TRADING (MID","31.00","Wolverhampton Indoor and Open Market","5999","Equipment - Purchase","26/06/2018"
"Wolverhampton City Council","http://opendatacommunities.org/id/metropolitan-district-council/wolverhampton","WILKO RETAIL LIMIT","10.50","Car Parks Operational Staff","5722","Equipment - Purchase","26/06/2018"
"Wolverhampton City Council","http://opendatacommunities.org/id/metropolitan-district-council/wolverhampton","ASDA GROCERIES ONLINE","-0.61","Ernest Bold Court","5411","Provisions (Not for resale)","26/06/2018"
"Wolverhampton City Council","http://opendatacommunities.org/id/metropolitan-district-council/wolverhampton","YOUNG`S SHOE REPAIRS L","61.95","Wolverhampton Indoor and Open Market","7251","Fixtures and Fittings - R&M","26/06/2018"
"Wolverhampton City Council","http://opendatacommunities.org/id/metropolitan-district-council/wolverhampton","ASDA GROCERIES ONLINE","74.52","Ernest Bold Court","5411","Provisions (Not for resale)","26/06/2018"
"Wolverhampton City Council","http://opendatacommunities.org/id/metropolitan-district-council/wolverhampton","J VAN VLIET BIRMINGHAM","7.50","Creative Studies Delivery Area","5399","Materials","26/06/2018"
"Wolverhampton City Council","http://opendatacommunities.org/id/metropolitan-district-council/wolverhampton","NATWEST BANK","200.00","Democratic Support","6011","Public Transport","26/06/2018"
"Wolverhampton City Council","http://opendatacommunities.org/id/metropolitan-district-council/wolverhampton","Trainline","47.10","Legal Services","4112","Public Transport","26/06/2018"
"Wolverhampton City Council","http://opendatacommunities.org/id/metropolitan-district-council/wolverhampton","Trainline","9.65","Legal Services","4112","Public Transport","26/06/2018"
"Wolverhampton City Council","http://opendatacommunities.org/id/metropolitan-district-council/wolverhampton","GRO HM PASSPORT OFFICE","23.40","Head of Service - CINCP","9399","Services - Professional Fees","26/06/2018"
"Wolverhampton City Council","http://opendatacommunities.org/id/metropolitan-district-council/wolverhampton","SJASUPLIES","152.10","Art Gallery","8398","First Aid Requisites","25/06/2018"
"Wolverhampton City Council","http://opendatacommunities.org/id/metropolitan-district-council/wolverhampton","000002200500000","250.00","CIN/CP Social Work Unit - Area 6","6011","Financial Assistance In Exceptional Circ","25/06/2018"
"Wolverhampton City Council","http://opendatacommunities.org/id/metropolitan-district-council/wolverhampton","GOOGLE  ADWS9680351324","469.23","Communications & Marketing - General","5968","Subscriptions","25/06/2018"
"Wolverhampton City Council","http://opendatacommunities.org/id/metropolitan-district-council/wolverhampton","THORNSGROUP.CO.UK","667.20","Corporate Events","5712","Equipment - Purchase","25/06/2018"
"Wolverhampton City Council","http://opendatacommunities.org/id/metropolitan-district-council/wolverhampton","CHARGE.PREZI.COM","629.25","Communications & Marketing - General","5045","Computing - Purchase of Hardware","25/06/2018"
"Wolverhampton City Council","http://opendatacommunities.org/id/metropolitan-district-council/wolverhampton","PAYPAL  ROADTRANSPO","195.00","HR Advice","5942","Subscriptions","25/06/2018"
"Wolverhampton City Council","http://opendatacommunities.org/id/metropolitan-district-council/wolverhampton","PAYPAL  ROADTRANSPO","390.00","HR Advice","5942","Subscriptions","25/06/2018"
"Wolverhampton City Council","http://opendatacommunities.org/id/metropolitan-district-council/wolverhampton","PAYPAL  ROADTRANSPO","195.00","HR Advice","5942","Subscriptions","25/06/2018"
"Wolverhampton City Council","http://opendatacommunities.org/id/metropolitan-district-council/wolverhampton","Amazon EU","15.54","Bert Williams Leisure Centre","5969","Equipment - Purchase","25/06/2018"
"Wolverhampton City Council","http://opendatacommunities.org/id/metropolitan-district-council/wolverhampton","Amazon EU","92.70","Bert Williams Leisure Centre","5969","Equipment - Purchase","25/06/2018"
"Wolverhampton City Council","http://opendatacommunities.org/id/metropolitan-district-council/wolverhampton","ASDA SUPERSTORE","100.00","Mayoral Expenses","5411","Hospitality","25/06/2018"
"Wolverhampton City Council","http://opendatacommunities.org/id/metropolitan-district-council/wolverhampton","Virgin Trains","-35.80","Strategic Financial Services","4112","Public Transport","25/06/2018"
"Wolverhampton City Council","http://opendatacommunities.org/id/metropolitan-district-council/wolverhampton","E01510300000000","30.00","Emergency Duty Team","6011","Financial Assistance In Exceptional Circ","25/06/2018"
"Wolverhampton City Council","http://opendatacommunities.org/id/metropolitan-district-council/wolverhampton","Trainline","-63.30","Director of Education","4112","Public Transport","25/06/2018"
"Wolverhampton City Council","http://opendatacommunities.org/id/metropolitan-district-council/wolverhampton","WM MORRISON 024","67.87","Ernest Bold Court","5411","Provisions (Not for resale)","25/06/2018"
"Wolverhampton City Council","http://opendatacommunities.org/id/metropolitan-district-council/wolverhampton","POST OFFICE COUNTER","80.40","Civic Centre Catering","9402","Comms - Postage","25/06/2018"
"Wolverhampton City Council","http://opendatacommunities.org/id/metropolitan-district-council/wolverhampton","AMAZON SVCS EU-UK AMAZ","7.99","Technical Support","5942","Computing - Purchase of Hardware","25/06/2018"
"Wolverhampton City Council","http://opendatacommunities.org/id/metropolitan-district-council/wolverhampton","PAYPAL  123REGLIMIT","19.98","Technical Support","4816","Computing - Purchase of Software","25/06/2018"
"Wolverhampton City Council","http://opendatacommunities.org/id/metropolitan-district-council/wolverhampton","Amazon Prime","7.99","Technical Support","5968","Subscriptions","25/06/2018"
"Wolverhampton City Council","http://opendatacommunities.org/id/metropolitan-district-council/wolverhampton","TRAINING INVOICE 7940","1170.00","Technical Support","7372","Computing - Purchase of Software","25/06/2018"
"Wolverhampton City Council","http://opendatacommunities.org/id/metropolitan-district-council/wolverhampton","B & Q 1243","5.47","Ernest Bold Court","5211","Fixtures and Fittings - R&M","25/06/2018"
"Wolverhampton City Council","http://opendatacommunities.org/id/metropolitan-district-council/wolverhampton","ASDA GROCERIES ONLINE","5.00","Ernest Bold Court","5411","Provisions (Not for resale)","25/06/2018"
"Wolverhampton City Council","http://opendatacommunities.org/id/metropolitan-district-council/wolverhampton","Amazon EU","758.22","Environmental Health - Pub Prot - Gen","5969","Equipment - Purchase","25/06/2018"
"Wolverhampton City Council","http://opendatacommunities.org/id/metropolitan-district-council/wolverhampton","Amazon UK Marketplace","26.97","Environmental Health - Pub Prot - Gen","5942","Equipment - Purchase","25/06/2018"
"Wolverhampton City Council","http://opendatacommunities.org/id/metropolitan-district-council/wolverhampton","Amazon UK Marketplace","13.48","Environmental Health - Pub Prot - Gen","5942","Equipment - Purchase","25/06/2018"
"Wolverhampton City Council","http://opendatacommunities.org/id/metropolitan-district-council/wolverhampton","Amazon UK Marketplace","6.74","Environmental Health - Pub Prot - Gen","5942","Equipment - Purchase","25/06/2018"
"Wolverhampton City Council","http://opendatacommunities.org/id/metropolitan-district-council/wolverhampton","Amazon UK Marketplace","61.60","Environmental Health - Pub Prot - Gen","5942","Equipment - Purchase","25/06/2018"
"Wolverhampton City Council","http://opendatacommunities.org/id/metropolitan-district-council/wolverhampton","Amazon UK Marketplace","47.19","Environmental Health - Pub Prot - Gen","5942","Equipment - Purchase","25/06/2018"
"Wolverhampton City Council","http://opendatacommunities.org/id/metropolitan-district-council/wolverhampton","WWW.JUSTGLOVES.CO.UK","86.40","Ernest Bold Court","5999","Fixtures and Fittings - Purchases","25/06/2018"
"Wolverhampton City Council","http://opendatacommunities.org/id/metropolitan-district-council/wolverhampton","Amazon EU","23.98","Ernest Bold Court","5969","Cleaning Supplies and Materials","25/06/2018"
"Wolverhampton City Council","http://opendatacommunities.org/id/metropolitan-district-council/wolverhampton","LIDL UK","9.98","Duke Street Bungalows","5411","Materials","25/06/2018"
"Wolverhampton City Council","http://opendatacommunities.org/id/metropolitan-district-council/wolverhampton","DFS Trading Ltd","143.00","Upper Pendeford Farm Childrens Home","5712","Equipment - Purchase","25/06/2018"
"Wolverhampton City Council","http://opendatacommunities.org/id/metropolitan-district-council/wolverhampton","Trainline","72.00","Inclusion Support","4112","Training Expenses","25/06/2018"
"Wolverhampton City Council","http://opendatacommunities.org/id/metropolitan-district-council/wolverhampton","SAINSBURYS SACAT 2040","19.20","Inclusion Support","5411","Training Expenses","25/06/2018"
"Wolverhampton City Council","http://opendatacommunities.org/id/metropolitan-district-council/wolverhampton","Trainline","156.70","Revenues","4112","Public Transport","25/06/2018"
"Wolverhampton City Council","http://opendatacommunities.org/id/metropolitan-district-council/wolverhampton","WILKO RETAIL LIMIT","12.00","Global Budgets","5722","Equipment - Purchase","25/06/2018"
"Wolverhampton City Council","http://opendatacommunities.org/id/metropolitan-district-council/wolverhampton","CUMMINGS BROTHERS LOCK","28.00","Global Budgets","7399","Equipment - Purchase","25/06/2018"
"Wolverhampton City Council","http://opendatacommunities.org/id/metropolitan-district-council/wolverhampton","ASDA SUPERSTORE","15.17","EIP Locality 5","5411","Grant Payments","25/06/2018"
"Wolverhampton City Council","http://opendatacommunities.org/id/metropolitan-district-council/wolverhampton","Virgin Trains","64.70","Delivery & OCE Development","4112","Public Transport","25/06/2018"
"Wolverhampton City Council","http://opendatacommunities.org/id/metropolitan-district-council/wolverhampton","Amazon UK Marketplace","109.98","EIP Locality 7","5942","Grant Payments","25/06/2018"
"Wolverhampton City Council","http://opendatacommunities.org/id/metropolitan-district-council/wolverhampton","PREMIER INN","129.17","Planning","3811","Accommodation Costs","25/06/2018"
"Wolverhampton City Council","http://opendatacommunities.org/id/metropolitan-district-council/wolverhampton","Virgin Trains","141.70","Planning","4112","Public Transport","25/06/2018"
"Wolverhampton City Council","http://opendatacommunities.org/id/metropolitan-district-council/wolverhampton","BUYITDIRECT CO UK","340.81","Technician","5734","Computing - Purchase of Software","25/06/2018"
"Wolverhampton City Council","http://opendatacommunities.org/id/metropolitan-district-council/wolverhampton","B&M RETAIL","16.93","LAC Transitions Team","5310","Independant Living Allowance","25/06/2018"
"Wolverhampton City Council","http://opendatacommunities.org/id/metropolitan-district-council/wolverhampton","B&M RETAIL","9.98","LAC Transitions Team","5310","Independant Living Allowance","25/06/2018"
"Wolverhampton City Council","http://opendatacommunities.org/id/metropolitan-district-council/wolverhampton","B&M RETAIL","9.97","LAC Transitions Team","5310","Independant Living Allowance","25/06/2018"
"Wolverhampton City Council","http://opendatacommunities.org/id/metropolitan-district-council/wolverhampton","ASDA GEORGE COM LEEDS","84.00","EIP Locality 3","5411","Grant Payments","25/06/2018"
"Wolverhampton City Council","http://opendatacommunities.org/id/metropolitan-district-council/wolverhampton","Amazon UK Marketplace","86.99","EIP Locality 8","5942","Grant Payments","25/06/2018"
"Wolverhampton City Council","http://opendatacommunities.org/id/metropolitan-district-council/wolverhampton","ARGOS RETAIL GROUP","19.98","EIP Locality 2","5310","Grant Payments","25/06/2018"
"Wolverhampton City Council","http://opendatacommunities.org/id/metropolitan-district-council/wolverhampton","Trainline","195.50","Strategic Director Place","4112","Public Transport","22/06/2018"
"Wolverhampton City Council","http://opendatacommunities.org/id/metropolitan-district-council/wolverhampton","HM PASSPORT","105.83","LAC Transitions Team","9399","Client Allowances","22/06/2018"
"Wolverhampton City Council","http://opendatacommunities.org/id/metropolitan-district-council/wolverhampton","AMAZON SVCS EU-UK AMAZ","23.32","Ernest Bold Court","5942","Cleaning Supplies and Materials","22/06/2018"
"Wolverhampton City Council","http://opendatacommunities.org/id/metropolitan-district-council/wolverhampton","ATZ&H INN","416.67","CIN/CP Social Work Unit - Area 6","7011","Section 17","22/06/2018"
"Wolverhampton City Council","http://opendatacommunities.org/id/metropolitan-district-council/wolverhampton","ATZ&H INN","38.33","CIN/CP Social Work Unit - Area 4","7011","Section 17","22/06/2018"
"Wolverhampton City Council","http://opendatacommunities.org/id/metropolitan-district-council/wolverhampton","WWW.ADASS.ORG.UK","2850.00","Central Training","8398","Services - Supplies & Services to users","22/06/2018"
"Wolverhampton City Council","http://opendatacommunities.org/id/metropolitan-district-council/wolverhampton","Virgin Trains","44.00","Road Safety","4112","Public Transport","22/06/2018"
"Wolverhampton City Council","http://opendatacommunities.org/id/metropolitan-district-council/wolverhampton","WM MORRISON 024","13.00","Community Enablement","5411","Materials","22/06/2018"
"Wolverhampton City Council","http://opendatacommunities.org/id/metropolitan-district-council/wolverhampton","Virgin Trains","129.20","Information Governance Team","4112","Public Transport","22/06/2018"
"Wolverhampton City Council","http://opendatacommunities.org/id/metropolitan-district-council/wolverhampton","AMAZON SVCS EU-UK AMAZ","9.80","Mental Health Assessment & Care Mgmt","5942","Comms - Mobile Telephones","22/06/2018"
"Wolverhampton City Council","http://opendatacommunities.org/id/metropolitan-district-council/wolverhampton","WOLVERHAMPTON CC","2.50","IMPACT","7523","Car Allowances","22/06/2018"
"Wolverhampton City Council","http://opendatacommunities.org/id/metropolitan-district-council/wolverhampton","WOLVERHAMPTON TO","17.40","IMPACT","4112","Public Transport","22/06/2018"
"Wolverhampton City Council","http://opendatacommunities.org/id/metropolitan-district-council/wolverhampton","WWW.LOCAL.GOV.UK","260.00","HR Advice","7399","Events","22/06/2018"
"Wolverhampton City Council","http://opendatacommunities.org/id/metropolitan-district-council/wolverhampton","ROYAL CARPETS","300.00","LAC Transitions Team","5713","Client Allowances","22/06/2018"
"Wolverhampton City Council","http://opendatacommunities.org/id/metropolitan-district-council/wolverhampton","ROYAL CARPETS","125.00","LAC Transitions Team","5713","Client Allowances","22/06/2018"
"Wolverhampton City Council","http://opendatacommunities.org/id/metropolitan-district-council/wolverhampton","WWW.MDNSUPPLIES.CO.UK","51.66","Business Manager - Place","5085","Equipment - Purchase","22/06/2018"
"Wolverhampton City Council","http://opendatacommunities.org/id/metropolitan-district-council/wolverhampton","THE KEYBOARD COMPANY U","87.97","Adult Services - East","5999","Equipment - Purchase","22/06/2018"
"Wolverhampton City Council","http://opendatacommunities.org/id/metropolitan-district-council/wolverhampton","Trainline","85.80","LAC Transitions Team","4112","Public Transport","22/06/2018"
"Wolverhampton City Council","http://opendatacommunities.org/id/metropolitan-district-council/wolverhampton","CITY OF WOLVERHAMPTON","-30.00","Legal Services","9399","Services - Fees and Charges","22/06/2018"
"Wolverhampton City Council","http://opendatacommunities.org/id/metropolitan-district-council/wolverhampton","CITY OF WOLVERHAMPTON","60.00","Legal Services","9399","Services - Fees and Charges","22/06/2018"
"Wolverhampton City Council","http://opendatacommunities.org/id/metropolitan-district-council/wolverhampton","NATWEST BANK","50.00","Intensive Family Support Team","6011","Financial Assistance In Exceptional Circ","22/06/2018"
"Wolverhampton City Council","http://opendatacommunities.org/id/metropolitan-district-council/wolverhampton","NATWEST BANK","500.00","Intensive Family Support Team","6011","Financial Assistance In Exceptional Circ","22/06/2018"
"Wolverhampton City Council","http://opendatacommunities.org/id/metropolitan-district-council/wolverhampton","ASDA GROCERIES ONLINE","-2.65","Upper Pendeford Farm Childrens Home","5411","Provisions (Not for resale)","22/06/2018"
"Wolverhampton City Council","http://opendatacommunities.org/id/metropolitan-district-council/wolverhampton","ASDA GROCERIES ONLINE","164.18","Upper Pendeford Farm Childrens Home","5411","Provisions (Not for resale)","22/06/2018"
"Wolverhampton City Council","http://opendatacommunities.org/id/metropolitan-district-council/wolverhampton","Amazon UK Marketplace","14.10","Upper Pendeford Farm Childrens Home","5942","Books","22/06/2018"
"Wolverhampton City Council","http://opendatacommunities.org/id/metropolitan-district-council/wolverhampton","WILKO RETAIL LIMIT","6.00","Central Costs","5722","Equipment - Purchase","22/06/2018"
"Wolverhampton City Council","http://opendatacommunities.org/id/metropolitan-district-council/wolverhampton","FLAVOUR OF PARADISE CA","150.00","Creative Studies Delivery Area","5812","Catering","22/06/2018"
"Wolverhampton City Council","http://opendatacommunities.org/id/metropolitan-district-council/wolverhampton","POUNDSTRETCHER 703","28.32","LAC Transitions Team","5714","Client Allowances","22/06/2018"
"Wolverhampton City Council","http://opendatacommunities.org/id/metropolitan-district-council/wolverhampton","HUGHES","281.67","LAC Transitions Team","5732","Client Allowances","22/06/2018"
"Wolverhampton City Council","http://opendatacommunities.org/id/metropolitan-district-council/wolverhampton","Virgin Trains","194.00","Housing Regeneration - Strategy & Dev","4112","Public Transport","22/06/2018"
"Wolverhampton City Council","http://opendatacommunities.org/id/metropolitan-district-council/wolverhampton","WICKES","20.83","Community Enablement","5211","Equipment - R & M","22/06/2018"
"Wolverhampton City Council","http://opendatacommunities.org/id/metropolitan-district-council/wolverhampton","B & Q 1243","19.17","Community Enablement","5211","Equipment - R & M","22/06/2018"
"Wolverhampton City Council","http://opendatacommunities.org/id/metropolitan-district-council/wolverhampton","CO-OPERATIVE TRAVE","757.44","Leonardo Da Vinci Project","6051","Subsistence","22/06/2018"
"Wolverhampton City Council","http://opendatacommunities.org/id/metropolitan-district-council/wolverhampton","GO CARZ","49.30","CIN/CP Social Work Unit - Area 5","4121","Section 17","22/06/2018"
"Wolverhampton City Council","http://opendatacommunities.org/id/metropolitan-district-council/wolverhampton","REDWINGS LODGE","11.98","Emergency Duty Team","7011","Services - Supplies & Services to users","22/06/2018"
"Wolverhampton City Council","http://opendatacommunities.org/id/metropolitan-district-council/wolverhampton","REDWINGS LODGE","58.29","Emergency Duty Team","7011","Services - Supplies & Services to users","22/06/2018"
"Wolverhampton City Council","http://opendatacommunities.org/id/metropolitan-district-council/wolverhampton","WWW.ARGOS.CO.UK","176.61","EIP Locality 3","5310","Grant Payments","22/06/2018"
"Wolverhampton City Council","http://opendatacommunities.org/id/metropolitan-district-council/wolverhampton","000002200500000","250.00","Childrens with Disabilities Team","6011","No Recourse to Public Funds","22/06/2018"
"Wolverhampton City Council","http://opendatacommunities.org/id/metropolitan-district-council/wolverhampton","WILLIAM & SONS","182.50","LAC Transitions Team","5712","Client Allowances","22/06/2018"
"Wolverhampton City Council","http://opendatacommunities.org/id/metropolitan-district-council/wolverhampton","ROYAL CARPETS","125.00","LAC Transitions Team","5713","Client Allowances","22/06/2018"
"Wolverhampton City Council","http://opendatacommunities.org/id/metropolitan-district-council/wolverhampton","Amazon EU","4.09","Adoption and Residence Team & Allowances","5969","Equipment - Purchase","22/06/2018"
"Wolverhampton City Council","http://opendatacommunities.org/id/metropolitan-district-council/wolverhampton","Amazon UK Marketplace","2.40","Adoption and Residence Team & Allowances","5942","Books","22/06/2018"
"Wolverhampton City Council","http://opendatacommunities.org/id/metropolitan-district-council/wolverhampton","SPAR LLANBERIS","7.47","Towers Outdoor Education Centre","5411","Provisions (Not for resale)","22/06/2018"
"Wolverhampton City Council","http://opendatacommunities.org/id/metropolitan-district-council/wolverhampton","COSTA COFFEE 43041785","6.37","Economic Development","5814","Educ Trips, Holidays, Outings, Activity","22/06/2018"
"Wolverhampton City Council","http://opendatacommunities.org/id/metropolitan-district-council/wolverhampton","COSTA COFFEE","6.04","Economic Development","5814","Educ Trips, Holidays, Outings, Activity","22/06/2018"
"Wolverhampton City Council","http://opendatacommunities.org/id/metropolitan-district-council/wolverhampton","WEST COAST TRAINS","7.80","Technician","4112","Public Transport","22/06/2018"
"Wolverhampton City Council","http://opendatacommunities.org/id/metropolitan-district-council/wolverhampton","CUMMINGS BROTHERS LOCK","6.67","Caretakers Community Centre","7399","Equipment - Purchase","22/06/2018"
"Wolverhampton City Council","http://opendatacommunities.org/id/metropolitan-district-council/wolverhampton","FACEBK H8Z7XESC22","600.00","Service Wide","7311","Marketing \ Non-staff advertising","21/06/2018"
"Wolverhampton City Council","http://opendatacommunities.org/id/metropolitan-district-council/wolverhampton","TIMPSON LTD","79.50","Service Wide","7251","Equipment - Purchase","21/06/2018"
"Wolverhampton City Council","http://opendatacommunities.org/id/metropolitan-district-council/wolverhampton","JUDDS FOLLY HOTEL","110.83","Private Hire Vehicles","7011","Accommodation Costs","21/06/2018"
"Wolverhampton City Council","http://opendatacommunities.org/id/metropolitan-district-council/wolverhampton","Amazon UK Marketplace","49.92","Environmental Health - Pub Prot - Gen","5942","Equipment - Purchase","21/06/2018"
"Wolverhampton City Council","http://opendatacommunities.org/id/metropolitan-district-council/wolverhampton","ASDA SUPERSTORE","74.00","Children & Young People Support Costs","5411","Client Allowances","21/06/2018"
"Wolverhampton City Council","http://opendatacommunities.org/id/metropolitan-district-council/wolverhampton","ASDA SUPERSTORE","198.90","Children & Family Contact Services","5411","Client Allowances","21/06/2018"
"Wolverhampton City Council","http://opendatacommunities.org/id/metropolitan-district-council/wolverhampton","WWW.INSITEGRAPHICS.CO","1220.16","Corporate Events","7392","Services - Consultants","21/06/2018"
"Wolverhampton City Council","http://opendatacommunities.org/id/metropolitan-district-council/wolverhampton","Amazon UK Marketplace","15.99","Foundation Studies","5942","Books","21/06/2018"
"Wolverhampton City Council","http://opendatacommunities.org/id/metropolitan-district-council/wolverhampton","Amazon UK Marketplace","5.95","Foundation Studies","5942","Books","21/06/2018"
"Wolverhampton City Council","http://opendatacommunities.org/id/metropolitan-district-council/wolverhampton","Amazon UK Marketplace","39.10","Foundation Studies","5942","Books","21/06/2018"
"Wolverhampton City Council","http://opendatacommunities.org/id/metropolitan-district-council/wolverhampton","DUDLEY ZOOLOGICAL GARD","58.50","SACRE","7999","Educ Trips, Holidays, Outings, Activity","21/06/2018"
"Wolverhampton City Council","http://opendatacommunities.org/id/metropolitan-district-council/wolverhampton","WOLVERHAMPTON TROPHY C","15.12","SACRE","5999","Equipment - Purchase","21/06/2018"
"Wolverhampton City Council","http://opendatacommunities.org/id/metropolitan-district-council/wolverhampton","WWW.TRANSPORTXTRA.COM","130.00","Travelwise","7399","Subscriptions","21/06/2018"
"Wolverhampton City Council","http://opendatacommunities.org/id/metropolitan-district-council/wolverhampton","TESCO STORES 5397","10.94","EIP Locality 1","5411","Provisions (Not for resale)","21/06/2018"
"Wolverhampton City Council","http://opendatacommunities.org/id/metropolitan-district-council/wolverhampton","E01510300000000","200.00","MASH","6011","Section 17","21/06/2018"
"Wolverhampton City Council","http://opendatacommunities.org/id/metropolitan-district-council/wolverhampton","Amazon UK Marketplace","53.33","Global Budgets","5942","Stationery","21/06/2018"
"Wolverhampton City Council","http://opendatacommunities.org/id/metropolitan-district-council/wolverhampton","AMAZON SVCS EU-UK AMAZ","15.31","Education And Access","5942","Books","21/06/2018"
"Wolverhampton City Council","http://opendatacommunities.org/id/metropolitan-district-council/wolverhampton","ARGOS LTD","24.98","Children & Young People Support Costs","5310","Client Allowances","21/06/2018"
"Wolverhampton City Council","http://opendatacommunities.org/id/metropolitan-district-council/wolverhampton","BT PAY BY PHONE","91.80","Community Enablement","4814","Comms - Telephone Call charges","21/06/2018"
"Wolverhampton City Council","http://opendatacommunities.org/id/metropolitan-district-council/wolverhampton","Amazon EU","15.19","Ernest Bold Court","5969","Cleaning Supplies and Materials","21/06/2018"
"Wolverhampton City Council","http://opendatacommunities.org/id/metropolitan-district-council/wolverhampton","TVLICENSING.CO.UK","150.50","Community Enablement","7392","Services - General Licences","21/06/2018"
"Wolverhampton City Council","http://opendatacommunities.org/id/metropolitan-district-council/wolverhampton","BIRMINGHAM CASH REGIST","50.00","Shopmobility","7399","Equipment - Purchase","21/06/2018"
"Wolverhampton City Council","http://opendatacommunities.org/id/metropolitan-district-council/wolverhampton","CURRYS S/S","66.66","Duke Street Bungalows","5732","Materials","21/06/2018"
"Wolverhampton City Council","http://opendatacommunities.org/id/metropolitan-district-council/wolverhampton","LIDL UK","21.65","Duke Street Bungalows","5411","Materials","21/06/2018"
"Wolverhampton City Council","http://opendatacommunities.org/id/metropolitan-district-council/wolverhampton","SHROPSHIRE COUNCIL","11.00","CIN/CP Social Work Unit - Area 5","8220","Section 17","21/06/2018"
"Wolverhampton City Council","http://opendatacommunities.org/id/metropolitan-district-council/wolverhampton","PCS AMV Couriers LTD","25.00","Headstart Phase 3","4214","Comms - Postage","21/06/2018"
"Wolverhampton City Council","http://opendatacommunities.org/id/metropolitan-district-council/wolverhampton","WWW.CSKILLS.ORG","25.00","IMPACT","8249","Training Expenses","21/06/2018"
"Wolverhampton City Council","http://opendatacommunities.org/id/metropolitan-district-council/wolverhampton","Trainline","211.50","LAC Transitions Team","4112","Client Allowances","21/06/2018"
"Wolverhampton City Council","http://opendatacommunities.org/id/metropolitan-district-council/wolverhampton","Trainline","119.50","SWP - Infrastructure","4112","Public Transport","21/06/2018"
"Wolverhampton City Council","http://opendatacommunities.org/id/metropolitan-district-council/wolverhampton","Trainline","87.50","SWP - Infrastructure","4112","Public Transport","21/06/2018"
"Wolverhampton City Council","http://opendatacommunities.org/id/metropolitan-district-council/wolverhampton","Amazon EU","49.44","Strategic ICTS (ICT Serv Budget)","5969","Equipment - Purchase","21/06/2018"
"Wolverhampton City Council","http://opendatacommunities.org/id/metropolitan-district-council/wolverhampton","THE PRINCIPAL MANCHEST","238.00","Risk Management & Insurance","7011","Services - Supplies & Services to users","21/06/2018"
"Wolverhampton City Council","http://opendatacommunities.org/id/metropolitan-district-council/wolverhampton","WILKO RETAIL LIMIT","36.25","Service Wide","5722","Equipment - Purchase","21/06/2018"
"Wolverhampton City Council","http://opendatacommunities.org/id/metropolitan-district-council/wolverhampton","WILKO RETAIL LIMIT","12.00","Foundation Studies","5722","Equipment - Purchase","21/06/2018"
"Wolverhampton City Council","http://opendatacommunities.org/id/metropolitan-district-council/wolverhampton","SCREWFIX DIRECT","102.43","Service Wide","5211","Equipment - Purchase","21/06/2018"
"Wolverhampton City Council","http://opendatacommunities.org/id/metropolitan-district-council/wolverhampton","Amazon UK Marketplace","61.46","Foundation Studies","5942","Books","21/06/2018"
"Wolverhampton City Council","http://opendatacommunities.org/id/metropolitan-district-council/wolverhampton","WOLVERHAMPTON CC","5.42","Headstart Phase 3","7523","Parking Fees","21/06/2018"
"Wolverhampton City Council","http://opendatacommunities.org/id/metropolitan-district-council/wolverhampton","B&M RETAIL LTD","42.21","LAC Transitions Team","5310","Client Allowances","21/06/2018"
"Wolverhampton City Council","http://opendatacommunities.org/id/metropolitan-district-council/wolverhampton","HOME BARGAINS","6.68","LAC Transitions Team","5251","Client Allowances","21/06/2018"
"Wolverhampton City Council","http://opendatacommunities.org/id/metropolitan-district-council/wolverhampton","ARGOS WOLVERHAMPTO","158.32","LAC Transitions Team","5310","Client Allowances","21/06/2018"
"Wolverhampton City Council","http://opendatacommunities.org/id/metropolitan-district-council/wolverhampton","POST OFFICE COUNTER","177.00","Adoption and Residence Team & Allowances","9402","Comms - Postage","21/06/2018"
"Wolverhampton City Council","http://opendatacommunities.org/id/metropolitan-district-council/wolverhampton","NETWORK RAIL (BAXTERST","6.90","Economic Development","5811","Catering","21/06/2018"
"Wolverhampton City Council","http://opendatacommunities.org/id/metropolitan-district-council/wolverhampton","BLOXWICH  SST","7.20","Economic Development","4112","Public Transport","21/06/2018"
"Wolverhampton City Council","http://opendatacommunities.org/id/metropolitan-district-council/wolverhampton","A & M CATERING SPECIAL","60.00","Fostering Team & Allowances","5812","Educ Trips, Holidays, Outings, Activity","21/06/2018"
"Wolverhampton City Council","http://opendatacommunities.org/id/metropolitan-district-council/wolverhampton","WM MORRISON 024","71.00","Community Enablement","5411","Materials","21/06/2018"
"Wolverhampton City Council","http://opendatacommunities.org/id/metropolitan-district-council/wolverhampton","Virgin Trains","412.00","Adoption and Residence Team & Allowances","4112","Public Transport","21/06/2018"
"Wolverhampton City Council","http://opendatacommunities.org/id/metropolitan-district-council/wolverhampton","Amazon EU","19.48","Licensing - General","5969","Equipment - Purchase","21/06/2018"
"Wolverhampton City Council","http://opendatacommunities.org/id/metropolitan-district-council/wolverhampton","Amazon EU","19.48","Licensing - General","5969","Equipment - Purchase","21/06/2018"
"Wolverhampton City Council","http://opendatacommunities.org/id/metropolitan-district-council/wolverhampton","PAYPAL  KAISERKRAFT","21.00","Northicote Farm","5943","Equipment - Purchase","21/06/2018"
"Wolverhampton City Council","http://opendatacommunities.org/id/metropolitan-district-council/wolverhampton","CURRYS","30.00","Contemporary Gallery","5732","Equipment - Purchase","20/06/2018"
"Wolverhampton City Council","http://opendatacommunities.org/id/metropolitan-district-council/wolverhampton","WM MORRISON FOOD.COM","63.14","Discretionary Fund","5411","Materials","20/06/2018"
"Wolverhampton City Council","http://opendatacommunities.org/id/metropolitan-district-council/wolverhampton","PAYPAL  JOSHWELLERM","100.00","The Little Civic","8999","Services - Professional Fees","20/06/2018"
"Wolverhampton City Council","http://opendatacommunities.org/id/metropolitan-district-council/wolverhampton","POST OFFICE COUNTER","8.60","Adoption and Residence Team & Allowances","9402","Comms - Postage","20/06/2018"
"Wolverhampton City Council","http://opendatacommunities.org/id/metropolitan-district-council/wolverhampton","TESCO STORES 5194","202.40","Towers Outdoor Education Centre","5411","Provisions (Not for resale)","20/06/2018"
"Wolverhampton City Council","http://opendatacommunities.org/id/metropolitan-district-council/wolverhampton","000002200500000","200.00","Headstart - Young People Engagement","6011","Financial Assistance In Exceptional Circ","20/06/2018"
"Wolverhampton City Council","http://opendatacommunities.org/id/metropolitan-district-council/wolverhampton","CITY OF WOLVERHAMPTON","25.00","IMPACT","9399","Services - Fees and Charges","20/06/2018"
"Wolverhampton City Council","http://opendatacommunities.org/id/metropolitan-district-council/wolverhampton","WILKO RETAIL LIMIT","10.00","Service Wide","5722","Equipment - Purchase","20/06/2018"
"Wolverhampton City Council","http://opendatacommunities.org/id/metropolitan-district-council/wolverhampton","WILKO RETAIL LIMIT","15.30","Service Wide","5722","Equipment - Purchase","20/06/2018"
"Wolverhampton City Council","http://opendatacommunities.org/id/metropolitan-district-council/wolverhampton","SCREWFIX DIRECT","132.02","Service Wide","5211","Equipment - Purchase","20/06/2018"
"Wolverhampton City Council","http://opendatacommunities.org/id/metropolitan-district-council/wolverhampton","WILKO.COM","15.00","Foundation Studies","5399","Equipment - Purchase","20/06/2018"
"Wolverhampton City Council","http://opendatacommunities.org/id/metropolitan-district-council/wolverhampton","CARVER/WOLVERHAMPTON/L","62.55","Culwell Street Depot","5211","R&M - Departmental planned (external)","20/06/2018"
"Wolverhampton City Council","http://opendatacommunities.org/id/metropolitan-district-council/wolverhampton","Virgin Trains","77.60","General Housing Administration","4112","Public Transport","20/06/2018"
"Wolverhampton City Council","http://opendatacommunities.org/id/metropolitan-district-council/wolverhampton","Amazon UK Marketplace","27.41","Vulnerable Young Persons Team","5942","Books","20/06/2018"
"Wolverhampton City Council","http://opendatacommunities.org/id/metropolitan-district-council/wolverhampton","Virgin Trains","27.20","Children & Young People Support Costs","4112","Public Transport","20/06/2018"
"Wolverhampton City Council","http://opendatacommunities.org/id/metropolitan-district-council/wolverhampton","WWW.RICHARDHAWORTH.CO.","211.64","Blakenhall Commty & Healthy Living Ctr","5719","Equipment - Purchase","20/06/2018"
"Wolverhampton City Council","http://opendatacommunities.org/id/metropolitan-district-council/wolverhampton","PAYPAL  123REGLIMIT","9.99","Technical Support","4816","Computing - Purchase of Software","20/06/2018"
"Wolverhampton City Council","http://opendatacommunities.org/id/metropolitan-district-council/wolverhampton","Wix.com","93.13","Technical Support","5817","Computing - Purchase of Software","20/06/2018"
"Wolverhampton City Council","http://opendatacommunities.org/id/metropolitan-district-council/wolverhampton","E.ON ENERGY SOLUTIONS","300.00","LAC Team","4900","Financial Assistance In Exceptional Circ","20/06/2018"
"Wolverhampton City Council","http://opendatacommunities.org/id/metropolitan-district-council/wolverhampton","Trainline","62.00","Service Director Adults","4112","Public Transport","20/06/2018"
"Wolverhampton City Council","http://opendatacommunities.org/id/metropolitan-district-council/wolverhampton","BT PAY BY PHONE","150.16","Ernest Bold Court","4814","Comms - Telephone Rental","20/06/2018"
"Wolverhampton City Council","http://opendatacommunities.org/id/metropolitan-district-council/wolverhampton","REGISTRARS OFFICE","11.00","CIN/CP Social Work Unit - Area 7","8299","Section 17","20/06/2018"
"Wolverhampton City Council","http://opendatacommunities.org/id/metropolitan-district-council/wolverhampton","REGISTRARS OFFICE","10.00","CIN/CP Social Work Unit - Area 7","8299","Section 17","20/06/2018"
"Wolverhampton City Council","http://opendatacommunities.org/id/metropolitan-district-council/wolverhampton","WEST MIDLANDS EMPLOYER","155.00","Central Training","7392","Training Expenses","20/06/2018"
"Wolverhampton City Council","http://opendatacommunities.org/id/metropolitan-district-council/wolverhampton","J VAN VLIET BIRMINGHAM","13.30","Creative Studies Delivery Area","5399","Materials","20/06/2018"
"Wolverhampton City Council","http://opendatacommunities.org/id/metropolitan-district-council/wolverhampton","J VAN VLIET BIRMINGHAM","81.50","Creative Studies Delivery Area","5399","Materials","20/06/2018"
"Wolverhampton City Council","http://opendatacommunities.org/id/metropolitan-district-council/wolverhampton","J VAN VLIET BIRMINGHAM","53.25","Creative Studies Delivery Area","5399","Materials","20/06/2018"
"Wolverhampton City Council","http://opendatacommunities.org/id/metropolitan-district-council/wolverhampton","CITY OF WOLVERHAMPTON","11.00","CIN/CP Social Work Unit - Area 5","9399","Section 17","20/06/2018"
"Wolverhampton City Council","http://opendatacommunities.org/id/metropolitan-district-council/wolverhampton","Amazon UK Marketplace","28.32","EIP Locality 7","5942","Equipment - Purchase","20/06/2018"
"Wolverhampton City Council","http://opendatacommunities.org/id/metropolitan-district-council/wolverhampton","Amazon UK Marketplace","11.16","EIP Locality 7","5942","Equipment - Purchase","20/06/2018"
"Wolverhampton City Council","http://opendatacommunities.org/id/metropolitan-district-council/wolverhampton","Amazon EU","19.48","Licensing - General","5969","Equipment - Purchase","20/06/2018"
"Wolverhampton City Council","http://opendatacommunities.org/id/metropolitan-district-council/wolverhampton","WILKO RETAIL LIMIT","56.05","Service Wide","5722","Equipment - Purchase","20/06/2018"
"Wolverhampton City Council","http://opendatacommunities.org/id/metropolitan-district-council/wolverhampton","WM MORRISON 024","1.35","Ernest Bold Court","5411","Provisions (Not for resale)","20/06/2018"
"Wolverhampton City Council","http://opendatacommunities.org/id/metropolitan-district-council/wolverhampton","LOOP11.COM","155.78","City Direct","7372","Computing - Purchase of Software","20/06/2018"
"Wolverhampton City Council","http://opendatacommunities.org/id/metropolitan-district-council/wolverhampton","ASDA SUPERSTORE","67.02","Mayoral Expenses","5411","Provisions (Not for resale)","20/06/2018"
"Wolverhampton City Council","http://opendatacommunities.org/id/metropolitan-district-council/wolverhampton","TRAVELODGE","211.00","Youth Offending Team","3615","Services - Supplies & Services to users","20/06/2018"
"Wolverhampton City Council","http://opendatacommunities.org/id/metropolitan-district-council/wolverhampton","Trainline","144.00","Youth Offending Team","4112","Public Transport","20/06/2018"
"Wolverhampton City Council","http://opendatacommunities.org/id/metropolitan-district-council/wolverhampton","ASDA SUPERSTORE","36.66","EIP Locality 6","5411","Provisions (Not for resale)","20/06/2018"
"Wolverhampton City Council","http://opendatacommunities.org/id/metropolitan-district-council/wolverhampton","Trainline","175.30","Service Director City Environment","4112","Public Transport","20/06/2018"
"Wolverhampton City Council","http://opendatacommunities.org/id/metropolitan-district-council/wolverhampton","Virgin Trains","45.83","Legal Services","4112","Public Transport","20/06/2018"
"Wolverhampton City Council","http://opendatacommunities.org/id/metropolitan-district-council/wolverhampton","Virgin Trains","33.70","Risk Management & Insurance","4112","Public Transport","20/06/2018"
"Wolverhampton City Council","http://opendatacommunities.org/id/metropolitan-district-council/wolverhampton","E.ON ENERGY SOLUTIONS","270.48","LAC Team","4900","Financial Assistance In Exceptional Circ","20/06/2018"
"Wolverhampton City Council","http://opendatacommunities.org/id/metropolitan-district-council/wolverhampton","Virgin Trains","65.60","Strategic Director People","4112","Public Transport","20/06/2018"
"Wolverhampton City Council","http://opendatacommunities.org/id/metropolitan-district-council/wolverhampton","ARGOS LTD","-45.77","LAC Transitions Team","5310","Client Allowances","19/06/2018"
"Wolverhampton City Council","http://opendatacommunities.org/id/metropolitan-district-council/wolverhampton","Trainline","95.20","LAC Transitions Team","4112","Client Allowances","19/06/2018"
"Wolverhampton City Council","http://opendatacommunities.org/id/metropolitan-district-council/wolverhampton","Amazon EU","194.62","Strategic ICTS (ICT Serv Budget)","5969","Equipment - Purchase","19/06/2018"
"Wolverhampton City Council","http://opendatacommunities.org/id/metropolitan-district-council/wolverhampton","Amazon Prime","6.66","Strategic ICTS (ICT Serv Budget)","5968","Subscriptions","19/06/2018"
"Wolverhampton City Council","http://opendatacommunities.org/id/metropolitan-district-council/wolverhampton","AMAZON SVCS EU-UK AMAZ","10.99","Foundation Studies","5942","Books","19/06/2018"
"Wolverhampton City Council","http://opendatacommunities.org/id/metropolitan-district-council/wolverhampton","Amazon UK Marketplace","129.84","ICT Services","5942","Computing - Purchase of Hardware","19/06/2018"
"Wolverhampton City Council","http://opendatacommunities.org/id/metropolitan-district-council/wolverhampton","TIPPERS WOLVERHAMPTON","20.22","Culwell Street Depot","5072","R&M - Departmental planned (external)","19/06/2018"
"Wolverhampton City Council","http://opendatacommunities.org/id/metropolitan-district-council/wolverhampton","Amazon UK Marketplace","4.16","Vulnerable Young Persons Team","5942","Books","19/06/2018"
"Wolverhampton City Council","http://opendatacommunities.org/id/metropolitan-district-council/wolverhampton","Amazon UK Marketplace","2.47","Vulnerable Young Persons Team","5942","Books","19/06/2018"
"Wolverhampton City Council","http://opendatacommunities.org/id/metropolitan-district-council/wolverhampton","BANANAPRINT","75.27","Technical Support","8931","Services - Professional Fees","19/06/2018"
"Wolverhampton City Council","http://opendatacommunities.org/id/metropolitan-district-council/wolverhampton","Amazon EU","15.95","Education And Access","5969","Books","19/06/2018"
"Wolverhampton City Council","http://opendatacommunities.org/id/metropolitan-district-council/wolverhampton","ASDA GROCERIES ONLINE","-0.29","Ernest Bold Court","5411","Provisions (Not for resale)","19/06/2018"
"Wolverhampton City Council","http://opendatacommunities.org/id/metropolitan-district-council/wolverhampton","CURRYS T/SALES","86.62","Contemporary Gallery","5732","Equipment - Purchase","19/06/2018"
"Wolverhampton City Council","http://opendatacommunities.org/id/metropolitan-district-council/wolverhampton","WOLVERHAMPTON CC","4.58","Headstart Phase 3","7523","Parking Fees","19/06/2018"
"Wolverhampton City Council","http://opendatacommunities.org/id/metropolitan-district-council/wolverhampton","TVLICENSING.CO.UK","150.50","Safeguarding Admin Resource","7392","Services - Consultants","19/06/2018"
"Wolverhampton City Council","http://opendatacommunities.org/id/metropolitan-district-council/wolverhampton","TVLICENSING.CO.UK","150.50","Safeguarding Admin Resource","7392","Services - Consultants","19/06/2018"
"Wolverhampton City Council","http://opendatacommunities.org/id/metropolitan-district-council/wolverhampton","IKEA LIMITED","72.08","LAC Transitions Team","5712","Client Allowances","19/06/2018"
"Wolverhampton City Council","http://opendatacommunities.org/id/metropolitan-district-council/wolverhampton","B&M RETAIL","130.74","LAC Transitions Team","5310","Client Allowances","19/06/2018"
"Wolverhampton City Council","http://opendatacommunities.org/id/metropolitan-district-council/wolverhampton","B&M RETAIL","113.70","LAC Transitions Team","5310","Client Allowances","19/06/2018"
"Wolverhampton City Council","http://opendatacommunities.org/id/metropolitan-district-council/wolverhampton","ARGOS RETAIL GROUP","59.55","LAC Transitions Team","5310","Client Allowances","19/06/2018"
"Wolverhampton City Council","http://opendatacommunities.org/id/metropolitan-district-council/wolverhampton","Trainline","93.50","Admin & Support","4112","Public Transport","19/06/2018"
"Wolverhampton City Council","http://opendatacommunities.org/id/metropolitan-district-council/wolverhampton","PAYPAL  TONEMGMTLTD","100.00","The Little Civic","5735","Marketing \ Non-staff advertising","19/06/2018"
"Wolverhampton City Council","http://opendatacommunities.org/id/metropolitan-district-council/wolverhampton","CO-OP GROUP 070228","1.99","Towers Outdoor Education Centre","5411","Provisions (Not for resale)","19/06/2018"
"Wolverhampton City Council","http://opendatacommunities.org/id/metropolitan-district-council/wolverhampton","O E METCALFE","216.19","Towers Outdoor Education Centre","5499","Provisions (Not for resale)","19/06/2018"
"Wolverhampton City Council","http://opendatacommunities.org/id/metropolitan-district-council/wolverhampton","REGISTRARS OFFICE","30.00","CIN/CP Social Work Unit - Area 6","8299","Section 17","19/06/2018"
"Wolverhampton City Council","http://opendatacommunities.org/id/metropolitan-district-council/wolverhampton","ICC VENUE","630.00","Corporate Events","7399","Equipment - Purchase","19/06/2018"
"Wolverhampton City Council","http://opendatacommunities.org/id/metropolitan-district-council/wolverhampton","ARGOS LTD","250.00","Headstart Phase 3","5310","Financial Assistance In Exceptional Circ","19/06/2018"
"Wolverhampton City Council","http://opendatacommunities.org/id/metropolitan-district-council/wolverhampton","WOLVERHAMPTON CC","10.42","IMPACT","7523","Car Allowances","19/06/2018"
"Wolverhampton City Council","http://opendatacommunities.org/id/metropolitan-district-council/wolverhampton","Trainline","-13.15","Education Business Partnership","4112","Public Transport","19/06/2018"
"Wolverhampton City Council","http://opendatacommunities.org/id/metropolitan-district-council/wolverhampton","Trainline","13.15","Education Business Partnership","4112","Public Transport","19/06/2018"
"Wolverhampton City Council","http://opendatacommunities.org/id/metropolitan-district-council/wolverhampton","Trainline","8.55","Education Business Partnership","4112","Public Transport","19/06/2018"
"Wolverhampton City Council","http://opendatacommunities.org/id/metropolitan-district-council/wolverhampton","POUNDLAND LTD 1463","10.00","Admin & Support","5310","Catering","19/06/2018"
"Wolverhampton City Council","http://opendatacommunities.org/id/metropolitan-district-council/wolverhampton","ASDA GROCERIES ONLINE","96.33","Ernest Bold Court","5411","Provisions (Not for resale)","19/06/2018"
"Wolverhampton City Council","http://opendatacommunities.org/id/metropolitan-district-council/wolverhampton","Amazon UK Marketplace","5.25","EIP Locality 7","5942","Equipment - Purchase","19/06/2018"
"Wolverhampton City Council","http://opendatacommunities.org/id/metropolitan-district-council/wolverhampton","WWW.ICO.GOV.UK","40.00","Members Expenses","9399","Subscriptions","19/06/2018"
"Wolverhampton City Council","http://opendatacommunities.org/id/metropolitan-district-council/wolverhampton","WWW.ICO.GOV.UK","40.00","Members Expenses","9399","Subscriptions","19/06/2018"
"Wolverhampton City Council","http://opendatacommunities.org/id/metropolitan-district-council/wolverhampton","WWW.ICO.GOV.UK","40.00","Members Expenses","9399","Subscriptions","19/06/2018"
"Wolverhampton City Council","http://opendatacommunities.org/id/metropolitan-district-council/wolverhampton","WWW.ICO.GOV.UK","40.00","Members Expenses","9399","Subscriptions","19/06/2018"
"Wolverhampton City Council","http://opendatacommunities.org/id/metropolitan-district-council/wolverhampton","WWW.ICO.GOV.UK","40.00","Members Expenses","9399","Subscriptions","19/06/2018"
"Wolverhampton City Council","http://opendatacommunities.org/id/metropolitan-district-council/wolverhampton","PAYPAL  SBRANNANSON","5.83","Northicote Farm","5099","Equipment - Purchase","19/06/2018"
"Wolverhampton City Council","http://opendatacommunities.org/id/metropolitan-district-council/wolverhampton","POST OFFICE COUNTER","8.60","Adoption and Residence Team & Allowances","9402","Comms - Postage","18/06/2018"
"Wolverhampton City Council","http://opendatacommunities.org/id/metropolitan-district-council/wolverhampton","MONA LIFTING LIMITED","403.20","Towers Outdoor Education Centre","5599","Equipment - Purchase","18/06/2018"
"Wolverhampton City Council","http://opendatacommunities.org/id/metropolitan-district-council/wolverhampton","Amazon UK Marketplace","37.99","Towers Outdoor Education Centre","5942","Equipment - Purchase","18/06/2018"
"Wolverhampton City Council","http://opendatacommunities.org/id/metropolitan-district-council/wolverhampton","NOTJUSTBALLOONS","38.09","WV Active Marketing","5947","Equipment - Purchase","18/06/2018"
"Wolverhampton City Council","http://opendatacommunities.org/id/metropolitan-district-council/wolverhampton","REDWINGS LODGE","33.29","Mental Health Assessment & Care Mgmt","7011","Services - Supplies & Services to users","18/06/2018"
"Wolverhampton City Council","http://opendatacommunities.org/id/metropolitan-district-council/wolverhampton","THE POST OFFICE","78.96","IMPACT","9402","Comms - Postage","18/06/2018"
"Wolverhampton City Council","http://opendatacommunities.org/id/metropolitan-district-council/wolverhampton","MOSS EXPRESS STOURBRID","54.90","Telecare","5085","Equipment - Purchase","18/06/2018"
"Wolverhampton City Council","http://opendatacommunities.org/id/metropolitan-district-council/wolverhampton","TESCO STORES 5397","1.00","EIP Locality 1","5411","Grant Payments","18/06/2018"
"Wolverhampton City Council","http://opendatacommunities.org/id/metropolitan-district-council/wolverhampton","SWITCH2 ENERGY LTD","34.22","LAC Transitions Team","4900","Client Allowances","18/06/2018"
"Wolverhampton City Council","http://opendatacommunities.org/id/metropolitan-district-council/wolverhampton","Amazon EU","57.50","EIP Locality 1","5969","Equipment - Purchase","18/06/2018"
"Wolverhampton City Council","http://opendatacommunities.org/id/metropolitan-district-council/wolverhampton","SAINSBURYS","200.00","Duke Street Bungalows","6011","Provisions (Not for resale)","18/06/2018"
"Wolverhampton City Council","http://opendatacommunities.org/id/metropolitan-district-council/wolverhampton","PAYPAL  123REGLIMIT","9.99","Technical Support","4816","Computing - Purchase of Software","18/06/2018"
"Wolverhampton City Council","http://opendatacommunities.org/id/metropolitan-district-council/wolverhampton","Amazon UK Marketplace","19.97","Global Budgets","5942","Stationery","18/06/2018"
"Wolverhampton City Council","http://opendatacommunities.org/id/metropolitan-district-council/wolverhampton","E01577600000000","40.00","EIP Locality 3","6011","Grant Payments","18/06/2018"
"Wolverhampton City Council","http://opendatacommunities.org/id/metropolitan-district-council/wolverhampton","WICKES","18.70","Learning Disabilities Management","5211","Equipment - R & M","18/06/2018"
"Wolverhampton City Council","http://opendatacommunities.org/id/metropolitan-district-council/wolverhampton","Amazon EU","41.99","Education And Access","5969","Books","18/06/2018"
"Wolverhampton City Council","http://opendatacommunities.org/id/metropolitan-district-council/wolverhampton","ASDA GROCERIES ONLINE","-1.12","Ernest Bold Court","5411","Provisions (Not for resale)","18/06/2018"
"Wolverhampton City Council","http://opendatacommunities.org/id/metropolitan-district-council/wolverhampton","ASDA GROCERIES ONLINE","74.89","Ernest Bold Court","5411","Provisions (Not for resale)","18/06/2018"
"Wolverhampton City Council","http://opendatacommunities.org/id/metropolitan-district-council/wolverhampton","AMAZON SVCS EU-UK AMAZ","12.99","Admin & Support","5942","Equipment - Health and Safety","18/06/2018"
"Wolverhampton City Council","http://opendatacommunities.org/id/metropolitan-district-council/wolverhampton","WEST MID TRAVEL","436.90","IMPACT","4131","Public Transport","18/06/2018"
"Wolverhampton City Council","http://opendatacommunities.org/id/metropolitan-district-council/wolverhampton","CITY OF WOLVERHAMPTON","31.00","IMPACT","9399","Services - Fees and Charges","18/06/2018"
"Wolverhampton City Council","http://opendatacommunities.org/id/metropolitan-district-council/wolverhampton","WOLVERHAMPTON CC","10.42","IMPACT","7523","Car Allowances","18/06/2018"
"Wolverhampton City Council","http://opendatacommunities.org/id/metropolitan-district-council/wolverhampton","WISEPOPS","64.51","City Direct","7372","Computing - Purchase of Software","18/06/2018"
"Wolverhampton City Council","http://opendatacommunities.org/id/metropolitan-district-council/wolverhampton","ASDA SUPERSTORE","6.55","Mayoral Expenses","5411","Provisions (Not for resale)","18/06/2018"
"Wolverhampton City Council","http://opendatacommunities.org/id/metropolitan-district-council/wolverhampton","Trainline","247.30","LAC Transitions Team","4112","Client Allowances","18/06/2018"
"Wolverhampton City Council","http://opendatacommunities.org/id/metropolitan-district-council/wolverhampton","CUMMINGS BROTHERS LOCK","5.83","Culwell Street Depot","7399","R&M - Departmental planned (external)","18/06/2018"
"Wolverhampton City Council","http://opendatacommunities.org/id/metropolitan-district-council/wolverhampton","APPLE ONLINE STORE GBP","449.00","Strategic ICTS (ICT Serv Budget)","5732","Equipment - Purchase","18/06/2018"
"Wolverhampton City Council","http://opendatacommunities.org/id/metropolitan-district-council/wolverhampton","WWW.PHOTOBOOTH-PROPS.C","149.83","Central Baths","5999","Equipment - Purchase","18/06/2018"
"Wolverhampton City Council","http://opendatacommunities.org/id/metropolitan-district-council/wolverhampton","AMZ Just Gloves","110.00","Central Baths","4816","Equipment - Purchase","18/06/2018"
"Wolverhampton City Council","http://opendatacommunities.org/id/metropolitan-district-council/wolverhampton","Amazon EU","26.16","Educational Studies Delivery Area","5969","Books","18/06/2018"
"Wolverhampton City Council","http://opendatacommunities.org/id/metropolitan-district-council/wolverhampton","ARGOS LTD","166.66","LAC Transitions Team","5310","Client Allowances","18/06/2018"
"Wolverhampton City Council","http://opendatacommunities.org/id/metropolitan-district-council/wolverhampton","ROYAL MAIL GROUP","3.00","Adoption and Residence Team & Allowances","9402","Comms - Postage","18/06/2018"
"Wolverhampton City Council","http://opendatacommunities.org/id/metropolitan-district-council/wolverhampton","Trainline","82.40","Head of Service - LAC","4112","Public Transport","18/06/2018"
"Wolverhampton City Council","http://opendatacommunities.org/id/metropolitan-district-council/wolverhampton","Virgin Trains","10.80","Mayoral Expenses","4112","Public Transport","18/06/2018"
"Wolverhampton City Council","http://opendatacommunities.org/id/metropolitan-district-council/wolverhampton","Virgin Trains","7.25","Members Expenses","4112","Public Transport","18/06/2018"
"Wolverhampton City Council","http://opendatacommunities.org/id/metropolitan-district-council/wolverhampton","ARGOS LTD","191.66","LAC Transitions Team","5310","Client Allowances","18/06/2018"
"Wolverhampton City Council","http://opendatacommunities.org/id/metropolitan-district-council/wolverhampton","ARGOS LTD","383.54","LAC Transitions Team","5310","Client Allowances","18/06/2018"
"Wolverhampton City Council","http://opendatacommunities.org/id/metropolitan-district-council/wolverhampton","HIRE STATION-LTD","90.00","Fountain Maintenance","7394","R&M - Departmental response (external)","18/06/2018"
"Wolverhampton City Council","http://opendatacommunities.org/id/metropolitan-district-council/wolverhampton","AMAZON SVCS EU-UK AMAZ","48.99","Parks - Ranger Service","5942","Protective Clothing","18/06/2018"
"Wolverhampton City Council","http://opendatacommunities.org/id/metropolitan-district-council/wolverhampton","WWW.HOBARTUK.CO.UK","177.61","Towers Outdoor Education Centre","5722","Fixtures and Fittings - Purchases","18/06/2018"
"Wolverhampton City Council","http://opendatacommunities.org/id/metropolitan-district-council/wolverhampton","GRO HM PASSPORT OFFICE","7.71","LAC Transitions Team","9399","Client Allowances","18/06/2018"
"Wolverhampton City Council","http://opendatacommunities.org/id/metropolitan-district-council/wolverhampton","APPLE ONLINE STORE GBP","4115.83","Strategic ICTS (ICT Serv Budget)","5732","Equipment - Purchase","18/06/2018"
"Wolverhampton City Council","http://opendatacommunities.org/id/metropolitan-district-council/wolverhampton","Amazon EU","50.00","Admin & Support","5969","Books","15/06/2018"
"Wolverhampton City Council","http://opendatacommunities.org/id/metropolitan-district-council/wolverhampton","ITUNES.COM/BILL","2.07","LAC Education Team (LACE)","5735","Computing - Purchase of Software","15/06/2018"
"Wolverhampton City Council","http://opendatacommunities.org/id/metropolitan-district-council/wolverhampton","GRO HM PASSPORT OFFICE","41.76","Adoption and Residence Team & Allowances","9399","Services - Fees and Charges","15/06/2018"
"Wolverhampton City Council","http://opendatacommunities.org/id/metropolitan-district-council/wolverhampton","Amazon UK Marketplace","46.44","Strategic ICTS (ICT Serv Budget)","5942","Books","15/06/2018"
"Wolverhampton City Council","http://opendatacommunities.org/id/metropolitan-district-council/wolverhampton","ASDA GROCERIES ONLINE","3.00","Upper Pendeford Farm Childrens Home","5411","Provisions (Not for resale)","15/06/2018"
"Wolverhampton City Council","http://opendatacommunities.org/id/metropolitan-district-council/wolverhampton","ASDA GROCERIES ONLINE","9.78","Upper Pendeford Farm Childrens Home","5411","Provisions (Not for resale)","15/06/2018"
"Wolverhampton City Council","http://opendatacommunities.org/id/metropolitan-district-council/wolverhampton","ASDA GROCERIES ONLINE","174.69","Upper Pendeford Farm Childrens Home","5411","Provisions (Not for resale)","15/06/2018"
"Wolverhampton City Council","http://opendatacommunities.org/id/metropolitan-district-council/wolverhampton","Trainline","68.00","Service Director Adults","4112","Public Transport","15/06/2018"
"Wolverhampton City Council","http://opendatacommunities.org/id/metropolitan-district-council/wolverhampton","Virgin Trains","119.50","Art Gallery","4112","Public Transport","15/06/2018"
"Wolverhampton City Council","http://opendatacommunities.org/id/metropolitan-district-council/wolverhampton","Trainline","74.80","Director of Education","4112","Public Transport","15/06/2018"
"Wolverhampton City Council","http://opendatacommunities.org/id/metropolitan-district-council/wolverhampton","HOBBYCRAFT (INTERNET)","83.33","Connexions Contract","5970","Materials","15/06/2018"
"Wolverhampton City Council","http://opendatacommunities.org/id/metropolitan-district-council/wolverhampton","WILKO RETAIL LIMIT","11.21","Connexions Contract","5722","Stationery","15/06/2018"
"Wolverhampton City Council","http://opendatacommunities.org/id/metropolitan-district-council/wolverhampton","ROYAL BK OF SCOTLAND","200.00","Duke Street Bungalows","6011","Provisions (Not for resale)","15/06/2018"
"Wolverhampton City Council","http://opendatacommunities.org/id/metropolitan-district-council/wolverhampton","NCE COMPUTER GROUP","207.50","Strategic ICTS (ICT Serv Budget)","7372","Computing - Purchase of Software","15/06/2018"
"Wolverhampton City Council","http://opendatacommunities.org/id/metropolitan-district-council/wolverhampton","Amazon EU","21.66","Towers Outdoor Education Centre","5969","Equipment - Purchase","15/06/2018"
"Wolverhampton City Council","http://opendatacommunities.org/id/metropolitan-district-council/wolverhampton","Amazon UK Marketplace","9.44","Towers Outdoor Education Centre","5942","Fixtures and Fittings - Purchases","15/06/2018"
"Wolverhampton City Council","http://opendatacommunities.org/id/metropolitan-district-council/wolverhampton","Amazon UK Marketplace","15.50","Towers Outdoor Education Centre","5942","Equipment - Purchase","15/06/2018"
"Wolverhampton City Council","http://opendatacommunities.org/id/metropolitan-district-council/wolverhampton","Amazon UK Marketplace","14.67","Towers Outdoor Education Centre","5942","Fixtures and Fittings - Purchases","15/06/2018"
"Wolverhampton City Council","http://opendatacommunities.org/id/metropolitan-district-council/wolverhampton","WOLVERHAMPTON TO","91.20","Electoral Registration","4112","Public Transport","15/06/2018"
"Wolverhampton City Council","http://opendatacommunities.org/id/metropolitan-district-council/wolverhampton","POST OFFICE COUNTER","146.65","Fostering Team & Allowances","9402","Comms - Postage","15/06/2018"
"Wolverhampton City Council","http://opendatacommunities.org/id/metropolitan-district-council/wolverhampton","WOLVERHAMPTON TO","17.40","IMPACT","4112","Public Transport","15/06/2018"
"Wolverhampton City Council","http://opendatacommunities.org/id/metropolitan-district-council/wolverhampton","PAYPAL  CHITTYSCAKE","324.00","IMPACT","5811","Catering","15/06/2018"
"Wolverhampton City Council","http://opendatacommunities.org/id/metropolitan-district-council/wolverhampton","CITY OF WOLVERHAMPTON","31.00","IMPACT","9399","Services - Fees and Charges","15/06/2018"
"Wolverhampton City Council","http://opendatacommunities.org/id/metropolitan-district-council/wolverhampton","CITY OF WOLVERHAMPTON","31.00","IMPACT","9399","Services - Fees and Charges","15/06/2018"
"Wolverhampton City Council","http://opendatacommunities.org/id/metropolitan-district-council/wolverhampton","000002200500000","50.00","Ernest Bold Court","6011","Materials","15/06/2018"
"Wolverhampton City Council","http://opendatacommunities.org/id/metropolitan-district-council/wolverhampton","000002200500000","220.00","Childrens with Disabilities Team","6011","No Recourse to Public Funds","15/06/2018"
"Wolverhampton City Council","http://opendatacommunities.org/id/metropolitan-district-council/wolverhampton","HERON FOODS LTD","10.79","Ernest Bold Court","5499","Catering","15/06/2018"
"Wolverhampton City Council","http://opendatacommunities.org/id/metropolitan-district-council/wolverhampton","Virgin Trains","69.30","Members Expenses","4112","Public Transport","15/06/2018"
"Wolverhampton City Council","http://opendatacommunities.org/id/metropolitan-district-council/wolverhampton","CURRYS S/S","194.99","LAC Transitions Team","5732","Client Allowances","15/06/2018"
"Wolverhampton City Council","http://opendatacommunities.org/id/metropolitan-district-council/wolverhampton","WWW.WMCA.CO.UK","1304.00","Travel Scratch Cards & Rail Warrants","4112","Public Transport","15/06/2018"
"Wolverhampton City Council","http://opendatacommunities.org/id/metropolitan-district-council/wolverhampton","AMZ Amazon.co.uk","-5.47","Learning Disabilities Management","5969","Stationery","15/06/2018"
"Wolverhampton City Council","http://opendatacommunities.org/id/metropolitan-district-council/wolverhampton","CARESHOP","141.36","Specialist Support Service - North","5999","Cleaning Supplies and Materials","15/06/2018"
"Wolverhampton City Council","http://opendatacommunities.org/id/metropolitan-district-council/wolverhampton","VIRGIN MEDIS PYMTS","9.00","Community Enablement","4814","Comms - Telephone Call charges","15/06/2018"
"Wolverhampton City Council","http://opendatacommunities.org/id/metropolitan-district-council/wolverhampton","ASDA GROCERIES ONLINE","206.06","Duke Street Bungalows","5411","Provisions (Not for resale)","15/06/2018"
"Wolverhampton City Council","http://opendatacommunities.org/id/metropolitan-district-council/wolverhampton","STRIKING DISPLAYS","175.15","Singh Twins","5085","Equipment - Purchase","15/06/2018"
"Wolverhampton City Council","http://opendatacommunities.org/id/metropolitan-district-council/wolverhampton","PAYPAL  DEWSBURYAUT","1.99","Technician","5533","Equipment - Purchase","15/06/2018"
"Wolverhampton City Council","http://opendatacommunities.org/id/metropolitan-district-council/wolverhampton","PAYPAL  HONGKONGFEN","3.35","Technician","5331","Equipment - Purchase","15/06/2018"
"Wolverhampton City Council","http://opendatacommunities.org/id/metropolitan-district-council/wolverhampton","E H SMITH - SHIRLEY (3","135.00","Singh Twins","5211","Materials","15/06/2018"
"Wolverhampton City Council","http://opendatacommunities.org/id/metropolitan-district-council/wolverhampton","SAINSBURYS 2040","200.00","Parent / Partnership Service","5411","Catering","15/06/2018"
"Wolverhampton City Council","http://opendatacommunities.org/id/metropolitan-district-council/wolverhampton","Trainline","201.50","CIN/CP Social Work Unit - Area 6","4112","Public Transport","15/06/2018"
"Wolverhampton City Council","http://opendatacommunities.org/id/metropolitan-district-council/wolverhampton","Amazon UK Marketplace","11.98","Adoption and Residence Team & Allowances","5942","Books","15/06/2018"
"Wolverhampton City Council","http://opendatacommunities.org/id/metropolitan-district-council/wolverhampton","Amazon UK Marketplace","2.48","EIP Locality 1","5942","Materials","15/06/2018"
"Wolverhampton City Council","http://opendatacommunities.org/id/metropolitan-district-council/wolverhampton","Amazon UK Marketplace","28.34","Community Enablement","5942","Equipment - Purchase","15/06/2018"
"Wolverhampton City Council","http://opendatacommunities.org/id/metropolitan-district-council/wolverhampton","PAYPAL  PRINTEDMUGS","206.00","Technical Support","2741","Materials","15/06/2018"
"Wolverhampton City Council","http://opendatacommunities.org/id/metropolitan-district-council/wolverhampton","THE COAL AUTHORITY","190.32","Disposal Costs","9399","Services - Professional Fees","15/06/2018"
"Wolverhampton City Council","http://opendatacommunities.org/id/metropolitan-district-council/wolverhampton","J VAN VLIET BIRMINGHAM","9.15","Creative Studies Delivery Area","5399","Equipment - Purchase","15/06/2018"
"Wolverhampton City Council","http://opendatacommunities.org/id/metropolitan-district-council/wolverhampton","Trainline","52.50","CIN/CP Social Work Unit - Area 4","4112","Section 17","15/06/2018"
"Wolverhampton City Council","http://opendatacommunities.org/id/metropolitan-district-council/wolverhampton","Trainline","49.00","CIN/CP Social Work Unit - Area 4","4112","Section 17","15/06/2018"
"Wolverhampton City Council","http://opendatacommunities.org/id/metropolitan-district-council/wolverhampton","AMAZON SVCS EU-UK AMAZ","43.20","Technical Support","5942","Computing - Purchase of Hardware","15/06/2018"
"Wolverhampton City Council","http://opendatacommunities.org/id/metropolitan-district-council/wolverhampton","Amazon UK Marketplace","4.79","Global Budgets","5942","Books","15/06/2018"
"Wolverhampton City Council","http://opendatacommunities.org/id/metropolitan-district-council/wolverhampton","Amazon UK Marketplace","10.70","Global Budgets","5942","Books","15/06/2018"
"Wolverhampton City Council","http://opendatacommunities.org/id/metropolitan-district-council/wolverhampton","SAINSBURYS","100.00","EIP Locality 3","6011","Grant Payments","15/06/2018"
"Wolverhampton City Council","http://opendatacommunities.org/id/metropolitan-district-council/wolverhampton","Amazon UK Marketplace","54.81","EIP Locality 3","5942","Stationery","15/06/2018"
"Wolverhampton City Council","http://opendatacommunities.org/id/metropolitan-district-council/wolverhampton","B & Q 1243","11.41","Ernest Bold Court","5211","Materials","15/06/2018"
"Wolverhampton City Council","http://opendatacommunities.org/id/metropolitan-district-council/wolverhampton","GRO HM PASSPORT OFFICE","41.76","Adoption and Residence Team & Allowances","9399","Financial Assistance In Exceptional Circ","15/06/2018"
"Wolverhampton City Council","http://opendatacommunities.org/id/metropolitan-district-council/wolverhampton","WWW.ARGOS.CO.UK","15.98","LAC Team","5310","Financial Assistance In Exceptional Circ","15/06/2018"
"Wolverhampton City Council","http://opendatacommunities.org/id/metropolitan-district-council/wolverhampton","WWW.ARGOS.CO.UK","186.93","LAC Team","5310","Financial Assistance In Exceptional Circ","15/06/2018"
"Wolverhampton City Council","http://opendatacommunities.org/id/metropolitan-district-council/wolverhampton","Trainline","8.05","Research & Development","4112","Public Transport","14/06/2018"
"Wolverhampton City Council","http://opendatacommunities.org/id/metropolitan-district-council/wolverhampton","POST OFFICE COUNTER","8.60","Adoption and Residence Team & Allowances","9402","Comms - Postage","14/06/2018"
"Wolverhampton City Council","http://opendatacommunities.org/id/metropolitan-district-council/wolverhampton","WWW.RADIO-SOLUTION.CO.","104.98","Towers Outdoor Education Centre","5732","Equipment - Purchase","14/06/2018"
"Wolverhampton City Council","http://opendatacommunities.org/id/metropolitan-district-council/wolverhampton","000002200500000","250.00","CIN/CP Social Work Unit - Area 6","6011","Financial Assistance In Exceptional Circ","14/06/2018"
"Wolverhampton City Council","http://opendatacommunities.org/id/metropolitan-district-council/wolverhampton","Amazon EU","10.79","LAC Education Team (LACE)","5969","Books","14/06/2018"
"Wolverhampton City Council","http://opendatacommunities.org/id/metropolitan-district-council/wolverhampton","Trainline","13.75","LAC Education Team (LACE)","4112","Public Transport","14/06/2018"
"Wolverhampton City Council","http://opendatacommunities.org/id/metropolitan-district-council/wolverhampton","STAR CARPET","316.67","LAC Transitions Team","5713","Client Allowances","14/06/2018"
"Wolverhampton City Council","http://opendatacommunities.org/id/metropolitan-district-council/wolverhampton","34SP.com Ltd","-1.00","Early Years & Universal Service","4816","Computing - Purchase of Software","14/06/2018"
"Wolverhampton City Council","http://opendatacommunities.org/id/metropolitan-district-council/wolverhampton","34SP.com Ltd","1.00","Early Years & Universal Service","4816","Computing - Purchase of Software","14/06/2018"
"Wolverhampton City Council","http://opendatacommunities.org/id/metropolitan-district-council/wolverhampton","Amazon EU","116.17","Strategic ICTS (ICT Serv Budget)","5969","Equipment - Purchase","14/06/2018"
"Wolverhampton City Council","http://opendatacommunities.org/id/metropolitan-district-council/wolverhampton","Amazon UK Marketplace","6.99","Strategic ICTS (ICT Serv Budget)","5942","Books","14/06/2018"
"Wolverhampton City Council","http://opendatacommunities.org/id/metropolitan-district-council/wolverhampton","WOLVERHAMPTON TO","124.10","Mental Health Assessment & Care Mgmt","4112","Public Transport","14/06/2018"
"Wolverhampton City Council","http://opendatacommunities.org/id/metropolitan-district-council/wolverhampton","Amazon UK Marketplace","61.14","EIP Locality 5","5942","Equipment - Purchase","14/06/2018"
"Wolverhampton City Council","http://opendatacommunities.org/id/metropolitan-district-council/wolverhampton","REGISTRARS OFFICE","21.00","CIN/CP Social Work Unit - Area 7","8299","Section 17","14/06/2018"
"Wolverhampton City Council","http://opendatacommunities.org/id/metropolitan-district-council/wolverhampton","GRO HM PASSPORT OFFICE","29.85","CIN/CP Social Work Unit - Area 7","9399","Services - Fees and Charges","14/06/2018"
"Wolverhampton City Council","http://opendatacommunities.org/id/metropolitan-district-council/wolverhampton","Virgin Trains","169.80","Waste Coll & Recycling Serv General","4112","Public Transport","14/06/2018"
"Wolverhampton City Council","http://opendatacommunities.org/id/metropolitan-district-council/wolverhampton","Amazon UK Marketplace","12.65","Technical Support","5942","Computing - Purchase of Hardware","14/06/2018"
"Wolverhampton City Council","http://opendatacommunities.org/id/metropolitan-district-council/wolverhampton","Amazon UK Marketplace","39.55","Global Budgets","5942","Books","14/06/2018"
"Wolverhampton City Council","http://opendatacommunities.org/id/metropolitan-district-council/wolverhampton","Virgin Trains","41.60","Members Expenses","4112","Public Transport","14/06/2018"
"Wolverhampton City Council","http://opendatacommunities.org/id/metropolitan-district-council/wolverhampton","CITY OF WOLVERHAMPTON","30.00","Head of Service - CINCP","9399","Services - Professional Fees","14/06/2018"
"Wolverhampton City Council","http://opendatacommunities.org/id/metropolitan-district-council/wolverhampton","J VAN VLIET BIRMINGHAM","2.99","Creative Studies Delivery Area","5399","Materials","14/06/2018"
"Wolverhampton City Council","http://opendatacommunities.org/id/metropolitan-district-council/wolverhampton","J VAN VLIET BIRMINGHAM","54.05","Creative Studies Delivery Area","5399","Materials","14/06/2018"
"Wolverhampton City Council","http://opendatacommunities.org/id/metropolitan-district-council/wolverhampton","J VAN VLIET BIRMINGHAM","137.85","Creative Studies Delivery Area","5399","Materials","14/06/2018"
"Wolverhampton City Council","http://opendatacommunities.org/id/metropolitan-district-council/wolverhampton","WWW.RYMAN.CO.UK","83.32","Music Support Team","5943","Stationery","14/06/2018"
"Wolverhampton City Council","http://opendatacommunities.org/id/metropolitan-district-council/wolverhampton","WM MORRISON FOOD.COM","80.05","Discretionary Fund","5411","Materials","13/06/2018"
"Wolverhampton City Council","http://opendatacommunities.org/id/metropolitan-district-council/wolverhampton","LUL TICKET MACHINE","19.60","BP Portrait Award","4112","Public Transport","13/06/2018"
"Wolverhampton City Council","http://opendatacommunities.org/id/metropolitan-district-council/wolverhampton","Amazon UK Marketplace","2.89","EIP Locality 8","5942","Equipment - Purchase","13/06/2018"
"Wolverhampton City Council","http://opendatacommunities.org/id/metropolitan-district-council/wolverhampton","B&M RETAIL LTD","7.98","Safeguarding Admin Resource","5310","Equipment - Purchase","13/06/2018"
"Wolverhampton City Council","http://opendatacommunities.org/id/metropolitan-district-council/wolverhampton","CITY DIRECT","25.00","LAC Transitions Team","8299","Client Allowances","13/06/2018"
"Wolverhampton City Council","http://opendatacommunities.org/id/metropolitan-district-council/wolverhampton","BLOXWICH  SST","7.20","Economic Development","4112","Public Transport","13/06/2018"
"Wolverhampton City Council","http://opendatacommunities.org/id/metropolitan-district-council/wolverhampton","Amazon EU","44.15","Communications & Marketing - General","5969","Equipment - Purchase","13/06/2018"
"Wolverhampton City Council","http://opendatacommunities.org/id/metropolitan-district-council/wolverhampton","FlybeB5Y2 B5Y2WM","321.98","Admin & Support","4511","Public Transport","13/06/2018"
"Wolverhampton City Council","http://opendatacommunities.org/id/metropolitan-district-council/wolverhampton","WWW.ARGOS.CO.UK","45.77","LAC Transitions Team","5310","Client Allowances","13/06/2018"
"Wolverhampton City Council","http://opendatacommunities.org/id/metropolitan-district-council/wolverhampton","WWW.ARGOS.CO.UK","160.78","EIP Locality 6","5310","Equipment - Purchase","13/06/2018"
"Wolverhampton City Council","http://opendatacommunities.org/id/metropolitan-district-council/wolverhampton","ASDA SUPERSTORE","36.82","EIP Locality 5","5411","Training Expenses","13/06/2018"
"Wolverhampton City Council","http://opendatacommunities.org/id/metropolitan-district-council/wolverhampton","Amazon UK Marketplace","5.97","Service Wide","5942","Equipment - Purchase","13/06/2018"
"Wolverhampton City Council","http://opendatacommunities.org/id/metropolitan-district-council/wolverhampton","AAIA.ORG.UK","395.00","School Improvement","8299","Training Expenses","13/06/2018"
"Wolverhampton City Council","http://opendatacommunities.org/id/metropolitan-district-council/wolverhampton","EB  ELECTRIC VEHICLE C","128.29","Travelwise","7399","Events","13/06/2018"
"Wolverhampton City Council","http://opendatacommunities.org/id/metropolitan-district-council/wolverhampton","Amazon UK Marketplace","29.39","EIP Locality 1","5942","Books","13/06/2018"
"Wolverhampton City Council","http://opendatacommunities.org/id/metropolitan-district-council/wolverhampton","CURRYS S/S","42.48","Duke Street Bungalows","5732","R4010","13/06/2018"
"Wolverhampton City Council","http://opendatacommunities.org/id/metropolitan-district-council/wolverhampton","Amazon EU","15.24","Head of Strategic Commissioning � People","5969","Equipment - Purchase","13/06/2018"
"Wolverhampton City Council","http://opendatacommunities.org/id/metropolitan-district-council/wolverhampton","PAYPAL  CUCKOOFARM","28.00","Northicote Farm","8999","Equipment - Purchase","13/06/2018"
"Wolverhampton City Council","http://opendatacommunities.org/id/metropolitan-district-council/wolverhampton","PAYPAL  PAULLOVENBU","11.95","Northicote Farm","5999","Equipment - Purchase","13/06/2018"
"Wolverhampton City Council","http://opendatacommunities.org/id/metropolitan-district-council/wolverhampton","000002200500000","240.00","CIN/CP Social Work Unit - Area 6","6011","Public Transport","13/06/2018"
"Wolverhampton City Council","http://opendatacommunities.org/id/metropolitan-district-council/wolverhampton","TESCO STORES 5194","105.90","Towers Outdoor Education Centre","5411","Provisions (Not for resale)","13/06/2018"
"Wolverhampton City Council","http://opendatacommunities.org/id/metropolitan-district-council/wolverhampton","MONARCH CLEANERS LTD","240.30","Towers Outdoor Education Centre","7216","Laundry Expenses","13/06/2018"
"Wolverhampton City Council","http://opendatacommunities.org/id/metropolitan-district-council/wolverhampton","NORTHERN POTTERY LTD","100.00","Towers Outdoor Education Centre","5999","Fixtures and Fittings - Purchases","13/06/2018"
"Wolverhampton City Council","http://opendatacommunities.org/id/metropolitan-district-council/wolverhampton","FUEL CARD SERVICES LTD","150.91","Towers Outdoor Education Centre","7399","Petrol","13/06/2018"
"Wolverhampton City Council","http://opendatacommunities.org/id/metropolitan-district-council/wolverhampton","COTSWOLD OUTDOOR","9.33","Towers Outdoor Education Centre","5999","Equipment - Purchase","13/06/2018"
"Wolverhampton City Council","http://opendatacommunities.org/id/metropolitan-district-council/wolverhampton","COTSWOLD OUTDOOR","19.18","Towers Outdoor Education Centre","5999","Equipment - Purchase","13/06/2018"
"Wolverhampton City Council","http://opendatacommunities.org/id/metropolitan-district-council/wolverhampton","HARLECH FOODSERVICE LT","87.60","Towers Outdoor Education Centre","5422","Provisions (Not for resale)","13/06/2018"
"Wolverhampton City Council","http://opendatacommunities.org/id/metropolitan-district-council/wolverhampton","SPAR SIOP TANDDERWEN","191.80","Towers Outdoor Education Centre","5411","Provisions (Not for resale)","13/06/2018"
"Wolverhampton City Council","http://opendatacommunities.org/id/metropolitan-district-council/wolverhampton","STERMAT CAR AND VA","2392.35","Towers Outdoor Education Centre","5541","Hire of Vehicles","13/06/2018"
"Wolverhampton City Council","http://opendatacommunities.org/id/metropolitan-district-council/wolverhampton","HN NUTTALL LTD","378.54","Towers Outdoor Education Centre","5085","Provisions (Not for resale)","13/06/2018"
"Wolverhampton City Council","http://opendatacommunities.org/id/metropolitan-district-council/wolverhampton","Wix.com","93.13","Technical Support","5817","Computing - Purchase of Software","13/06/2018"
"Wolverhampton City Council","http://opendatacommunities.org/id/metropolitan-district-council/wolverhampton","Amazon UK Marketplace","25.61","Global Budgets","5942","Books","13/06/2018"
"Wolverhampton City Council","http://opendatacommunities.org/id/metropolitan-district-council/wolverhampton","Amazon UK Marketplace","2.80","Global Budgets","5942","Books","13/06/2018"
"Wolverhampton City Council","http://opendatacommunities.org/id/metropolitan-district-council/wolverhampton","FS160 CLAREGATE","5.01","Bradley Resource Centre","5541","Petrol","13/06/2018"
"Wolverhampton City Council","http://opendatacommunities.org/id/metropolitan-district-council/wolverhampton","Virgin Trains","-81.00","Education And Access","4112","Public Transport","13/06/2018"
"Wolverhampton City Council","http://opendatacommunities.org/id/metropolitan-district-council/wolverhampton","THE COAL AUTHORITY","162.87","HRA General","9399","Services - Fees and Charges","13/06/2018"
"Wolverhampton City Council","http://opendatacommunities.org/id/metropolitan-district-council/wolverhampton","WWW.ARGOS.CO.UK","-54.99","MASH","5310","Equipment - Purchase","13/06/2018"
"Wolverhampton City Council","http://opendatacommunities.org/id/metropolitan-district-council/wolverhampton","REGISTRARS OFFICE","20.00","CIN/CP Social Work Unit - Area 1","8299","Section 17","13/06/2018"
"Wolverhampton City Council","http://opendatacommunities.org/id/metropolitan-district-council/wolverhampton","REGISTRARS OFFICE","11.00","CIN/CP Social Work Unit - Area 8","8299","Section 17","13/06/2018"
"Wolverhampton City Council","http://opendatacommunities.org/id/metropolitan-district-council/wolverhampton","GRO HM PASSPORT OFFICE","70.20","CIN/CP Social Work Unit - Area 8","9399","Section 17","13/06/2018"
"Wolverhampton City Council","http://opendatacommunities.org/id/metropolitan-district-council/wolverhampton","Amazon UK Marketplace","6.85","EIP Locality 7","5942","Materials","13/06/2018"
"Wolverhampton City Council","http://opendatacommunities.org/id/metropolitan-district-council/wolverhampton","Amazon UK Marketplace","8.56","EIP Locality 7","5942","Equipment - Purchase","13/06/2018"
"Wolverhampton City Council","http://opendatacommunities.org/id/metropolitan-district-council/wolverhampton","C L JONES HEAD OFFICE","131.87","Towers Outdoor Education Centre","5211","Fixtures and Fittings - Purchases","13/06/2018"
"Wolverhampton City Council","http://opendatacommunities.org/id/metropolitan-district-council/wolverhampton","Amazon UK Marketplace","10.49","EIP Locality 7","5942","Equipment - Purchase","13/06/2018"
"Wolverhampton City Council","http://opendatacommunities.org/id/metropolitan-district-council/wolverhampton","Amazon UK Marketplace","8.37","EIP Locality 7","5942","Equipment - Purchase","13/06/2018"
"Wolverhampton City Council","http://opendatacommunities.org/id/metropolitan-district-council/wolverhampton","Trainline","218.70","Legal Services","4112","Public Transport","12/06/2018"
"Wolverhampton City Council","http://opendatacommunities.org/id/metropolitan-district-council/wolverhampton","WWW.ARGOS.CO.UK","-3.95","MASH","5310","Equipment - Purchase","12/06/2018"
"Wolverhampton City Council","http://opendatacommunities.org/id/metropolitan-district-council/wolverhampton","WWW.ARGOS.CO.UK","78.94","MASH","5310","Equipment - Purchase","12/06/2018"
"Wolverhampton City Council","http://opendatacommunities.org/id/metropolitan-district-council/wolverhampton","Virgin Trains","206.00","Adoption and Residence Team & Allowances","4112","Public Transport","12/06/2018"
"Wolverhampton City Council","http://opendatacommunities.org/id/metropolitan-district-council/wolverhampton","DULUX DECORATOR CENTRE","279.79","Melanie Tomlinson","5198","Materials","12/06/2018"
"Wolverhampton City Council","http://opendatacommunities.org/id/metropolitan-district-council/wolverhampton","FSPRG.UK","5.05","Technical Support","5818","Subscriptions","12/06/2018"
"Wolverhampton City Council","http://opendatacommunities.org/id/metropolitan-district-council/wolverhampton","WICKES","10.83","Community Enablement","5211","Equipment - R & M","12/06/2018"
"Wolverhampton City Council","http://opendatacommunities.org/id/metropolitan-district-council/wolverhampton","ASDA GROCERIES ONLINE","-0.40","Ernest Bold Court","5411","Provisions (Not for resale)","12/06/2018"
"Wolverhampton City Council","http://opendatacommunities.org/id/metropolitan-district-council/wolverhampton","ASDA GROCERIES ONLINE","77.99","Ernest Bold Court","5411","Provisions (Not for resale)","12/06/2018"
"Wolverhampton City Council","http://opendatacommunities.org/id/metropolitan-district-council/wolverhampton","POST OFFICE COUNTER","8.04","CIN/CP Social Work Unit - Area 4","9402","Comms - Postage","12/06/2018"
"Wolverhampton City Council","http://opendatacommunities.org/id/metropolitan-district-council/wolverhampton","WWW.ARGOS.CO.UK","106.94","EIP Locality 5","5310","Grant Payments","12/06/2018"
"Wolverhampton City Council","http://opendatacommunities.org/id/metropolitan-district-council/wolverhampton","WILKO RETAIL LIMIT","8.50","Foundation Studies","5722","Equipment - Purchase","12/06/2018"
"Wolverhampton City Council","http://opendatacommunities.org/id/metropolitan-district-council/wolverhampton","AMAZON SVCS EU-UK AMAZ","18.24","Creative Studies Delivery Area","5942","Equipment - Purchase","12/06/2018"
"Wolverhampton City Council","http://opendatacommunities.org/id/metropolitan-district-council/wolverhampton","CUMMINGS BROTHERS LOCK","29.17","Culwell Street Depot","7399","R&M - Departmental planned (external)","12/06/2018"
"Wolverhampton City Council","http://opendatacommunities.org/id/metropolitan-district-council/wolverhampton","Virgin Trains","77.60","Private Sector Housing","4112","Public Transport","12/06/2018"
"Wolverhampton City Council","http://opendatacommunities.org/id/metropolitan-district-council/wolverhampton","WIX.COM","46.57","Technical Support","5968","Subscriptions","12/06/2018"
"Wolverhampton City Council","http://opendatacommunities.org/id/metropolitan-district-council/wolverhampton","123-REG.CO.UK","9.99","Technical Support","4816","Computing - Purchase of Software","12/06/2018"
"Wolverhampton City Council","http://opendatacommunities.org/id/metropolitan-district-council/wolverhampton","NATIONWIDE","140.00","EIP Locality 2","6011","Provisions (Not for resale)","12/06/2018"
"Wolverhampton City Council","http://opendatacommunities.org/id/metropolitan-district-council/wolverhampton","NATIONWIDE","100.00","EIP Locality 2","6011","Grant Payments","12/06/2018"
"Wolverhampton City Council","http://opendatacommunities.org/id/metropolitan-district-council/wolverhampton","Virgin Trains","176.00","Adoption and Residence Team & Allowances","4112","Public Transport","12/06/2018"
"Wolverhampton City Council","http://opendatacommunities.org/id/metropolitan-district-council/wolverhampton","TESCO DELIVERY SAVER2","3.49","Towers Outdoor Education Centre","5968","Provisions (Not for resale)","12/06/2018"
"Wolverhampton City Council","http://opendatacommunities.org/id/metropolitan-district-council/wolverhampton","JOE BROWN CLIMBING SHO","1479.58","Towers Outdoor Education Centre","5655","Equipment - Purchase","12/06/2018"
"Wolverhampton City Council","http://opendatacommunities.org/id/metropolitan-district-council/wolverhampton","Virgin Trains","115.70","Audit Services","4112","Public Transport","12/06/2018"
"Wolverhampton City Council","http://opendatacommunities.org/id/metropolitan-district-council/wolverhampton","000002200500000","200.00","Headstart - Young People Engagement","6011","Financial Assistance In Exceptional Circ","12/06/2018"
"Wolverhampton City Council","http://opendatacommunities.org/id/metropolitan-district-council/wolverhampton","Audible Ltd","7.99","Upper Pendeford Farm Childrens Home","5968","Subscriptions","12/06/2018"
"Wolverhampton City Council","http://opendatacommunities.org/id/metropolitan-district-council/wolverhampton","BCC REGISTER OFFIC","17.85","IMPACT","9399","Services - Fees and Charges","12/06/2018"
"Wolverhampton City Council","http://opendatacommunities.org/id/metropolitan-district-council/wolverhampton","Virgin Trains","107.70","LAC Team","4112","Client Transport","12/06/2018"
"Wolverhampton City Council","http://opendatacommunities.org/id/metropolitan-district-council/wolverhampton","Trainline","105.50","LAC Transitions Team","4112","Client Allowances","12/06/2018"
"Wolverhampton City Council","http://opendatacommunities.org/id/metropolitan-district-council/wolverhampton","Virgin Trains","107.70","LAC Team","4112","Client Transport","12/06/2018"
"Wolverhampton City Council","http://opendatacommunities.org/id/metropolitan-district-council/wolverhampton","AMAZON SVCS EU-UK AMAZ","24.89","Creative Studies Delivery Area","5942","Equipment - Purchase","11/06/2018"
"Wolverhampton City Council","http://opendatacommunities.org/id/metropolitan-district-council/wolverhampton","Amazon EU","19.92","Communications & Marketing - General","5969","Equipment - Purchase","11/06/2018"
"Wolverhampton City Council","http://opendatacommunities.org/id/metropolitan-district-council/wolverhampton","SAINSBURYS SACAT 2040","18.25","Upper Pendeford Farm Childrens Home","5411","Provisions (Not for resale)","11/06/2018"
"Wolverhampton City Council","http://opendatacommunities.org/id/metropolitan-district-council/wolverhampton","ASDA GROCERIES ONLINE","5.00","Upper Pendeford Farm Childrens Home","5411","Provisions (Not for resale)","11/06/2018"
"Wolverhampton City Council","http://opendatacommunities.org/id/metropolitan-district-council/wolverhampton","Amazon UK Marketplace","43.31","Headstart - Young People Engagement","5942","Computing - Consumables","11/06/2018"
"Wolverhampton City Council","http://opendatacommunities.org/id/metropolitan-district-council/wolverhampton","TRANSPARENT","11.09","City Direct","7372","Computing - Purchase of Software","11/06/2018"
"Wolverhampton City Council","http://opendatacommunities.org/id/metropolitan-district-council/wolverhampton","PiktochartCO 460GR1J6K","30.82","Public Health Support Costs","5817","Computing - Purchase of Software","11/06/2018"
"Wolverhampton City Council","http://opendatacommunities.org/id/metropolitan-district-council/wolverhampton","WP-CENTRAL TAXIS L","-20.00","Adoption and Residence Team & Allowances","4121","Client Transport","11/06/2018"
"Wolverhampton City Council","http://opendatacommunities.org/id/metropolitan-district-council/wolverhampton","Amazon EU","14.77","Strategic ICTS (ICT Serv Budget)","5969","Equipment - Purchase","11/06/2018"
"Wolverhampton City Council","http://opendatacommunities.org/id/metropolitan-district-council/wolverhampton","Amazon Prime","7.99","Upper Pendeford Farm Childrens Home","5968","Subscriptions","11/06/2018"
"Wolverhampton City Council","http://opendatacommunities.org/id/metropolitan-district-council/wolverhampton","ASDA GROCERIES ONLINE","0.36","Upper Pendeford Farm Childrens Home","5411","Provisions (Not for resale)","11/06/2018"
"Wolverhampton City Council","http://opendatacommunities.org/id/metropolitan-district-council/wolverhampton","ASDA GROCERIES ONLINE","167.57","Upper Pendeford Farm Childrens Home","5411","Provisions (Not for resale)","11/06/2018"
"Wolverhampton City Council","http://opendatacommunities.org/id/metropolitan-district-council/wolverhampton","Amazon UK Marketplace","39.99","SACRE","5942","Books","11/06/2018"
"Wolverhampton City Council","http://opendatacommunities.org/id/metropolitan-district-council/wolverhampton","Amazon EU","10.00","Technical Support","5969","Equipment - Purchase","11/06/2018"
"Wolverhampton City Council","http://opendatacommunities.org/id/metropolitan-district-council/wolverhampton","WIX.COM","186.26","Technical Support","5817","Computing - Purchase of Software","11/06/2018"
"Wolverhampton City Council","http://opendatacommunities.org/id/metropolitan-district-council/wolverhampton","Amazon UK Marketplace","41.86","Technical Support","5942","Computing - Purchase of Hardware","11/06/2018"
"Wolverhampton City Council","http://opendatacommunities.org/id/metropolitan-district-council/wolverhampton","WOLVERHAMPTON TO","65.80","Art Gallery","4112","Public Transport","11/06/2018"
"Wolverhampton City Council","http://opendatacommunities.org/id/metropolitan-district-council/wolverhampton","Amazon UK Marketplace","13.45","Creative Studies Delivery Area","5942","Equipment - Purchase","11/06/2018"
"Wolverhampton City Council","http://opendatacommunities.org/id/metropolitan-district-council/wolverhampton","Virgin Trains","91.00","Education And Access","4112","Public Transport","11/06/2018"
"Wolverhampton City Council","http://opendatacommunities.org/id/metropolitan-district-council/wolverhampton","Amazon UK Marketplace","24.47","SACRE","5942","Books","11/06/2018"
"Wolverhampton City Council","http://opendatacommunities.org/id/metropolitan-district-council/wolverhampton","Amazon UK Marketplace","40.81","SACRE","5942","Books","11/06/2018"
"Wolverhampton City Council","http://opendatacommunities.org/id/metropolitan-district-council/wolverhampton","Trainline","67.50","Governors support team","4112","Public Transport","11/06/2018"
"Wolverhampton City Council","http://opendatacommunities.org/id/metropolitan-district-council/wolverhampton","POST OFFICE COUNTER","16.12","Private Sector Housing","9402","Comms - Postage","11/06/2018"
"Wolverhampton City Council","http://opendatacommunities.org/id/metropolitan-district-council/wolverhampton","EMIRATES AIRLINES (ABBR. EMIRATES)","440.57","MASH","3026","No Recourse to Public Funds","11/06/2018"
"Wolverhampton City Council","http://opendatacommunities.org/id/metropolitan-district-council/wolverhampton","ASDA SUPERSTORE","15.89","Adult Services - West","5411","Catering","11/06/2018"
"Wolverhampton City Council","http://opendatacommunities.org/id/metropolitan-district-council/wolverhampton","ASDA SUPERSTORE","25.58","CIN/CP Social Work Unit - Area 5","5411","No Recourse to Public Funds","11/06/2018"
"Wolverhampton City Council","http://opendatacommunities.org/id/metropolitan-district-council/wolverhampton","Trainline","80.50","BP Portrait Award","4112","Public Transport","11/06/2018"
"Wolverhampton City Council","http://opendatacommunities.org/id/metropolitan-district-council/wolverhampton","THE POPPY APPEAL","222.00","Mayoral Expenses","8398","Materials","11/06/2018"
"Wolverhampton City Council","http://opendatacommunities.org/id/metropolitan-district-council/wolverhampton","PAYPAL  THEROTA","171.99","Visitor Economy - Development","5735","Computing - Purchase of Software","11/06/2018"
"Wolverhampton City Council","http://opendatacommunities.org/id/metropolitan-district-council/wolverhampton","CT WOLVERHAMPTON","25.00","EIP Locality 4","8398","Services - Supplies & Services to users","11/06/2018"
"Wolverhampton City Council","http://opendatacommunities.org/id/metropolitan-district-council/wolverhampton","C P L TRAINING LTD","1235.00","Wolverhampton Indoor and Open Market","8299","Training Expenses","11/06/2018"
"Wolverhampton City Council","http://opendatacommunities.org/id/metropolitan-district-council/wolverhampton","Amazon Prime","7.99","Members Expenses","5968","Subscriptions","11/06/2018"
"Wolverhampton City Council","http://opendatacommunities.org/id/metropolitan-district-council/wolverhampton","WWW.ICO.GOV.UK","40.00","Members Expenses","9399","Subscriptions","11/06/2018"
"Wolverhampton City Council","http://opendatacommunities.org/id/metropolitan-district-council/wolverhampton","Virgin Trains","132.60","Planning","4112","Public Transport","11/06/2018"
"Wolverhampton City Council","http://opendatacommunities.org/id/metropolitan-district-council/wolverhampton","AMAZON SVCS EU-UK AMAZ","9.99","Building Consultancy","5942","Stationery","11/06/2018"
"Wolverhampton City Council","http://opendatacommunities.org/id/metropolitan-district-council/wolverhampton","WOLVERHAMPTON TO","17.80","CIN/CP Social Work Unit - Area 3","4112","Public Transport","11/06/2018"
"Wolverhampton City Council","http://opendatacommunities.org/id/metropolitan-district-council/wolverhampton","THE POST OFFICE","6.50","Education And Access","9402","Comms - Postage","11/06/2018"
"Wolverhampton City Council","http://opendatacommunities.org/id/metropolitan-district-council/wolverhampton","WWW.ARGOS.CO.UK","226.59","LAC Transitions Team","5310","Client Allowances","11/06/2018"
"Wolverhampton City Council","http://opendatacommunities.org/id/metropolitan-district-council/wolverhampton","ASDA GROCERIES ONLINE","-0.33","Ernest Bold Court","5411","Provisions (Not for resale)","11/06/2018"
"Wolverhampton City Council","http://opendatacommunities.org/id/metropolitan-district-council/wolverhampton","ASDA GROCERIES ONLINE","74.98","Ernest Bold Court","5411","Provisions (Not for resale)","11/06/2018"
"Wolverhampton City Council","http://opendatacommunities.org/id/metropolitan-district-council/wolverhampton","PAST PRESENT AND FUTUR","154.17","LAC Transitions Team","5732","Client Allowances","11/06/2018"
"Wolverhampton City Council","http://opendatacommunities.org/id/metropolitan-district-council/wolverhampton","T K MAXX","54.15","Duke Street Bungalows","5331","Materials","11/06/2018"
"Wolverhampton City Council","http://opendatacommunities.org/id/metropolitan-district-council/wolverhampton","Amazon UK Marketplace","16.12","Children & Family Contact Services","5942","Equipment - Purchase","11/06/2018"
"Wolverhampton City Council","http://opendatacommunities.org/id/metropolitan-district-council/wolverhampton","WWW.ARGOS.CO.UK","58.94","MASH","5310","Equipment - Purchase","11/06/2018"
"Wolverhampton City Council","http://opendatacommunities.org/id/metropolitan-district-council/wolverhampton","Amazon EU","45.99","Inclusion Support","5969","Equipment - Purchase","11/06/2018"
"Wolverhampton City Council","http://opendatacommunities.org/id/metropolitan-district-council/wolverhampton","COVE HOUSE","90.00","LAC Team","7011","Services - Supplies & Services to users","11/06/2018"
"Wolverhampton City Council","http://opendatacommunities.org/id/metropolitan-district-council/wolverhampton","WCC PHONE PAYMENTS","55.90","LAC Transitions Team","9399","Client Allowances","11/06/2018"
"Wolverhampton City Council","http://opendatacommunities.org/id/metropolitan-district-council/wolverhampton","AMAZON SVCS EU-UK AMAZ","42.70","Parks - Ranger Service","5942","Stationery","11/06/2018"
"Wolverhampton City Council","http://opendatacommunities.org/id/metropolitan-district-council/wolverhampton","WOLVERHAMPTON CC","4.58","Headstart Phase 3","7523","Parking Fees","08/06/2018"
"Wolverhampton City Council","http://opendatacommunities.org/id/metropolitan-district-council/wolverhampton","B&M RETAIL LTD","8.32","LAC Transitions Team","5310","Client Allowances","08/06/2018"
"Wolverhampton City Council","http://opendatacommunities.org/id/metropolitan-district-council/wolverhampton","000002200500000","240.00","Childrens with Disabilities Team","6011","No Recourse to Public Funds","08/06/2018"
"Wolverhampton City Council","http://opendatacommunities.org/id/metropolitan-district-council/wolverhampton","POSTURITE (UK) LTD","103.96","Fostering Team & Allowances","5021","Furniture","08/06/2018"
"Wolverhampton City Council","http://opendatacommunities.org/id/metropolitan-district-council/wolverhampton","Trainline","152.50","GEN Y City Transnational","4112","Public Transport","08/06/2018"
"Wolverhampton City Council","http://opendatacommunities.org/id/metropolitan-district-council/wolverhampton","Amazon EU","212.07","Communications & Marketing - General","5969","Equipment - Purchase","08/06/2018"
"Wolverhampton City Council","http://opendatacommunities.org/id/metropolitan-district-council/wolverhampton","BLOOM","140.83","Mayoral Expenses","5947","Clothing / Uniforms","08/06/2018"
"Wolverhampton City Council","http://opendatacommunities.org/id/metropolitan-district-council/wolverhampton","WORLDSTORES","147.06","LAC Transitions Team","5722","Client Allowances","08/06/2018"
"Wolverhampton City Council","http://opendatacommunities.org/id/metropolitan-district-council/wolverhampton","CURRYS ONLINE","41.66","LAC Transitions Team","5732","Client Allowances","08/06/2018"
"Wolverhampton City Council","http://opendatacommunities.org/id/metropolitan-district-council/wolverhampton","WWW.ARGOS.CO.UK","45.77","LAC Transitions Team","5310","Client Allowances","08/06/2018"
"Wolverhampton City Council","http://opendatacommunities.org/id/metropolitan-district-council/wolverhampton","Trainline","18.35","Youth Offending Team","4112","Public Transport","08/06/2018"
"Wolverhampton City Council","http://opendatacommunities.org/id/metropolitan-district-council/wolverhampton","Virgin Trains","127.90","Strategic Financial Services","4112","Public Transport","08/06/2018"
"Wolverhampton City Council","http://opendatacommunities.org/id/metropolitan-district-council/wolverhampton","GO CARZ","13.10","LAC Team","4121","Client Transport","08/06/2018"
"Wolverhampton City Council","http://opendatacommunities.org/id/metropolitan-district-council/wolverhampton","GRO HM PASSPORT OFFICE","29.85","Adoption and Residence Team & Allowances","9399","Services - Fees and Charges","08/06/2018"
"Wolverhampton City Council","http://opendatacommunities.org/id/metropolitan-district-council/wolverhampton","POUNDSTRETCHER 147","12.00","Service Wide","5714","Educ Trips, Holidays, Outings, Activity","08/06/2018"
"Wolverhampton City Council","http://opendatacommunities.org/id/metropolitan-district-council/wolverhampton","LUL TICKET MACHINE","10.00","Art Gallery","4112","Public Transport","08/06/2018"
"Wolverhampton City Council","http://opendatacommunities.org/id/metropolitan-district-council/wolverhampton","WWW.CARESHOP.CO.UK","76.95","Ernest Bold Court","5999","Equipment - Purchase","08/06/2018"
"Wolverhampton City Council","http://opendatacommunities.org/id/metropolitan-district-council/wolverhampton","Amazon EU","15.59","Strategic Asset Management - General","5969","Equipment - Purchase","08/06/2018"
"Wolverhampton City Council","http://opendatacommunities.org/id/metropolitan-district-council/wolverhampton","WWW.ARGOS.CO.UK","101.93","EIP Locality 1","5310","Grant Payments","08/06/2018"
"Wolverhampton City Council","http://opendatacommunities.org/id/metropolitan-district-council/wolverhampton","WILKO RETAIL LIMIT","8.45","Duke Street Bungalows","5722","R4010","08/06/2018"
"Wolverhampton City Council","http://opendatacommunities.org/id/metropolitan-district-council/wolverhampton","FLOWERCRAFT","25.00","EIP Locality 3","5992","Grant Payments","08/06/2018"
"Wolverhampton City Council","http://opendatacommunities.org/id/metropolitan-district-council/wolverhampton","WWW.ICO.GOV.UK","40.00","Members Expenses","9399","Subscriptions","08/06/2018"
"Wolverhampton City Council","http://opendatacommunities.org/id/metropolitan-district-council/wolverhampton","WWW.ICO.GOV.UK","40.00","Members Expenses","9399","Subscriptions","08/06/2018"
"Wolverhampton City Council","http://opendatacommunities.org/id/metropolitan-district-council/wolverhampton","WWW.ICO.GOV.UK","40.00","Members Expenses","9399","Subscriptions","08/06/2018"
"Wolverhampton City Council","http://opendatacommunities.org/id/metropolitan-district-council/wolverhampton","WWW.ICO.GOV.UK","40.00","Members Expenses","9399","Subscriptions","08/06/2018"
"Wolverhampton City Council","http://opendatacommunities.org/id/metropolitan-district-council/wolverhampton","WWW.ICO.GOV.UK","40.00","Members Expenses","9399","Subscriptions","08/06/2018"
"Wolverhampton City Council","http://opendatacommunities.org/id/metropolitan-district-council/wolverhampton","WWW.ICO.GOV.UK","40.00","Members Expenses","9399","Subscriptions","08/06/2018"
"Wolverhampton City Council","http://opendatacommunities.org/id/metropolitan-district-council/wolverhampton","WWW.ICO.GOV.UK","40.00","Members Expenses","9399","Subscriptions","08/06/2018"
"Wolverhampton City Council","http://opendatacommunities.org/id/metropolitan-district-council/wolverhampton","WWW.ICO.GOV.UK","40.00","Members Expenses","9399","Subscriptions","08/06/2018"
"Wolverhampton City Council","http://opendatacommunities.org/id/metropolitan-district-council/wolverhampton","B & Q 1243","17.87","Community Enablement","5211","Equipment - R & M","08/06/2018"
"Wolverhampton City Council","http://opendatacommunities.org/id/metropolitan-district-council/wolverhampton","Amazon EU","17.95","Learning Disabilities Management","5969","Stationery","08/06/2018"
"Wolverhampton City Council","http://opendatacommunities.org/id/metropolitan-district-council/wolverhampton","Trainline","130.70","Central Utilities to Recharge","4112","Public Transport","08/06/2018"
"Wolverhampton City Council","http://opendatacommunities.org/id/metropolitan-district-council/wolverhampton","CARD FACTORY","2.90","School Crossing Patrol","5947","Equipment - Purchase","08/06/2018"
"Wolverhampton City Council","http://opendatacommunities.org/id/metropolitan-district-council/wolverhampton","DEBENHAMS.COM","26.67","School Crossing Patrol","5311","Equipment - Purchase","08/06/2018"
"Wolverhampton City Council","http://opendatacommunities.org/id/metropolitan-district-council/wolverhampton","AnyVanUK","65.00","CIN/CP Social Work Unit - Area 8","4215","Section 17","08/06/2018"
"Wolverhampton City Council","http://opendatacommunities.org/id/metropolitan-district-council/wolverhampton","HM PASSPORT","254.00","CIN/CP Social Work Unit - Area 7","9399","Section 17","08/06/2018"
"Wolverhampton City Council","http://opendatacommunities.org/id/metropolitan-district-council/wolverhampton","WWW.ICO.GOV.UK","40.00","Members Expenses","9399","Subscriptions","08/06/2018"
"Wolverhampton City Council","http://opendatacommunities.org/id/metropolitan-district-council/wolverhampton","WWW.ICO.GOV.UK","40.00","Members Expenses","9399","Subscriptions","08/06/2018"
"Wolverhampton City Council","http://opendatacommunities.org/id/metropolitan-district-council/wolverhampton","CHARTERED INSTITUTE OF","289.00","Central Training","8398","Training Expenses","07/06/2018"
"Wolverhampton City Council","http://opendatacommunities.org/id/metropolitan-district-council/wolverhampton","VANTAGE V C LIMITED","1950.00","Fleet Management","5533","Services - Professional Fees","07/06/2018"
"Wolverhampton City Council","http://opendatacommunities.org/id/metropolitan-district-council/wolverhampton","RYMAN","14.95","Contemporary Gallery","5943","Stationery","07/06/2018"
"Wolverhampton City Council","http://opendatacommunities.org/id/metropolitan-district-council/wolverhampton","Trainline","166.00","Music Support Team","4112","Public Transport","07/06/2018"
"Wolverhampton City Council","http://opendatacommunities.org/id/metropolitan-district-council/wolverhampton","AMAZON SVCS EU-UK AMAZ","36.42","Parks - Ranger Service","5942","Stationery","07/06/2018"
"Wolverhampton City Council","http://opendatacommunities.org/id/metropolitan-district-council/wolverhampton","AMAZON SVCS EU-UK AMAZ","50.97","Parks - Ranger Service","5942","Stationery","07/06/2018"
"Wolverhampton City Council","http://opendatacommunities.org/id/metropolitan-district-council/wolverhampton","TFM FARM & COUNTRY SUP","247.87","Northicote Farm","5399","Equipment - Purchase","07/06/2018"
"Wolverhampton City Council","http://opendatacommunities.org/id/metropolitan-district-council/wolverhampton","WWW.NISBETS.COM","191.97","Mayoral Expenses","5964","Equipment - Purchase","07/06/2018"
"Wolverhampton City Council","http://opendatacommunities.org/id/metropolitan-district-council/wolverhampton","PAYPAL  BARNARDOS","45.00","EIP Locality 2","8999","Training Expenses","07/06/2018"
"Wolverhampton City Council","http://opendatacommunities.org/id/metropolitan-district-council/wolverhampton","WWW.IKEA.COM","69.96","EIP Locality 4","5712","Equipment - Purchase","07/06/2018"
"Wolverhampton City Council","http://opendatacommunities.org/id/metropolitan-district-council/wolverhampton","THE RANGE","2.48","Fostering Team & Allowances","5311","Equipment - Purchase","07/06/2018"
"Wolverhampton City Council","http://opendatacommunities.org/id/metropolitan-district-council/wolverhampton","SHOWLITE LTD","199.00","Corporate Events","5399","Equipment - Purchase","07/06/2018"
"Wolverhampton City Council","http://opendatacommunities.org/id/metropolitan-district-council/wolverhampton","PHOTO ME INTERNATIONAL","14.00","Headstart - Young People Engagement","7395","Materials","07/06/2018"
"Wolverhampton City Council","http://opendatacommunities.org/id/metropolitan-district-council/wolverhampton","SAINSBURYS","300.00","Headstart - Young People Engagement","6011","Financial Assistance In Exceptional Circ","07/06/2018"
"Wolverhampton City Council","http://opendatacommunities.org/id/metropolitan-district-council/wolverhampton","SAINSBURYS (2340)","25.46","Headstart - Young People Engagement","5411","Provisions (Not for resale)","07/06/2018"
"Wolverhampton City Council","http://opendatacommunities.org/id/metropolitan-district-council/wolverhampton","NAMESCO","34.99","City Direct","4816","Computing - Purchase of Software","07/06/2018"
"Wolverhampton City Council","http://opendatacommunities.org/id/metropolitan-district-council/wolverhampton","Trainline","380.40","Libraries","4112","Public Transport","07/06/2018"
"Wolverhampton City Council","http://opendatacommunities.org/id/metropolitan-district-council/wolverhampton","Amazon UK Marketplace","2.71","Risk Management & Insurance","5942","Equipment - Purchase","07/06/2018"
"Wolverhampton City Council","http://opendatacommunities.org/id/metropolitan-district-council/wolverhampton","Trainline","105.00","Art Gallery","4112","Public Transport","07/06/2018"
"Wolverhampton City Council","http://opendatacommunities.org/id/metropolitan-district-council/wolverhampton","FOOD SAFETY DIRECT LTD","12.97","Private Sector Housing","5999","Equipment - Purchase","07/06/2018"
"Wolverhampton City Council","http://opendatacommunities.org/id/metropolitan-district-council/wolverhampton","WOLVERHAMPTON SELF STO","85.00","EIP Locality 1","4214","Grant Payments","07/06/2018"
"Wolverhampton City Council","http://opendatacommunities.org/id/metropolitan-district-council/wolverhampton","WWW.ARGOS.CO.UK","99.99","EIP Locality 3","5310","Grant Payments","07/06/2018"
"Wolverhampton City Council","http://opendatacommunities.org/id/metropolitan-district-council/wolverhampton","TOOLSTATION LTD","12.50","Education Catering - General Overheads","5251","Materials","07/06/2018"
"Wolverhampton City Council","http://opendatacommunities.org/id/metropolitan-district-council/wolverhampton","TOOLSTATION LTD","53.84","Education Catering - General Overheads","5251","Catering","07/06/2018"
"Wolverhampton City Council","http://opendatacommunities.org/id/metropolitan-district-council/wolverhampton","CURRYS S/S","31.66","Duke Street Bungalows","5732","Equipment - Purchase","07/06/2018"
"Wolverhampton City Council","http://opendatacommunities.org/id/metropolitan-district-council/wolverhampton","WOLVERHAMPTON CC","3.33","IMPACT","7523","Car Allowances","07/06/2018"
"Wolverhampton City Council","http://opendatacommunities.org/id/metropolitan-district-council/wolverhampton","SAINSBURYS PFS (1340)","1.67","Mayoral Expenses","5541","Vehicle Maintenance - Repairs","07/06/2018"
"Wolverhampton City Council","http://opendatacommunities.org/id/metropolitan-district-council/wolverhampton","ASDA GROCERIES ONLINE","186.65","Upper Pendeford Farm Childrens Home","5411","Provisions (Not for resale)","06/06/2018"
"Wolverhampton City Council","http://opendatacommunities.org/id/metropolitan-district-council/wolverhampton","LABC","80.00","Building Consultancy","8699","Services - Professional Fees","06/06/2018"
"Wolverhampton City Council","http://opendatacommunities.org/id/metropolitan-district-council/wolverhampton","GRO HM PASSPORT OFFICE","7.71","LAC Transitions Team","9399","Client Allowances","06/06/2018"
"Wolverhampton City Council","http://opendatacommunities.org/id/metropolitan-district-council/wolverhampton","WM MORRISON FOOD.COM","60.67","Discretionary Fund","5411","Materials","06/06/2018"
"Wolverhampton City Council","http://opendatacommunities.org/id/metropolitan-district-council/wolverhampton","TESCO STORES 5194","293.45","Towers Outdoor Education Centre","5411","Provisions (Not for resale)","06/06/2018"
"Wolverhampton City Council","http://opendatacommunities.org/id/metropolitan-district-council/wolverhampton","WOLVERHAMPTON RACECOUR","219.60","Delivery & OCE Development","7999","Events","06/06/2018"
"Wolverhampton City Council","http://opendatacommunities.org/id/metropolitan-district-council/wolverhampton","TV LICENSING","125.42","LAC Transitions Team","7392","Client Allowances","06/06/2018"
"Wolverhampton City Council","http://opendatacommunities.org/id/metropolitan-district-council/wolverhampton","ARGOS LTD","169.99","LAC Transitions Team","5310","Client Allowances","06/06/2018"
"Wolverhampton City Council","http://opendatacommunities.org/id/metropolitan-district-council/wolverhampton","WWW.SPECIALPLASTERS.CO","65.48","Foundation Studies","5211","Materials","06/06/2018"
"Wolverhampton City Council","http://opendatacommunities.org/id/metropolitan-district-council/wolverhampton","WWW.ARGOS.CO.UK","30.93","Creative Studies Delivery Area","5310","Equipment - Purchase","06/06/2018"
"Wolverhampton City Council","http://opendatacommunities.org/id/metropolitan-district-council/wolverhampton","AIRCLEAN LIMITED","133.50","Creative Studies Delivery Area","5999","Equipment - Purchase","06/06/2018"
"Wolverhampton City Council","http://opendatacommunities.org/id/metropolitan-district-council/wolverhampton","Trainline","26.45","Director of Education","4112","Public Transport","06/06/2018"
"Wolverhampton City Council","http://opendatacommunities.org/id/metropolitan-district-council/wolverhampton","CARVER/WOLVERHAMPTON/L","11.15","Culwell Street Depot","5211","R&M - Departmental planned (external)","06/06/2018"
"Wolverhampton City Council","http://opendatacommunities.org/id/metropolitan-district-council/wolverhampton","ALDI 94 772","2.08","Specialist Support Service - North","5411","Catering","06/06/2018"
"Wolverhampton City Council","http://opendatacommunities.org/id/metropolitan-district-council/wolverhampton","AMAZON SVCS EU-UK AMAZ","47.47","HARP","5942","Equipment - Purchase","06/06/2018"
"Wolverhampton City Council","http://opendatacommunities.org/id/metropolitan-district-council/wolverhampton","WWW.ARGOS.CO.UK","124.99","EIP Locality 3","5310","Grant Payments","06/06/2018"
"Wolverhampton City Council","http://opendatacommunities.org/id/metropolitan-district-council/wolverhampton","GLENDEVON HOUSE HOTEL","67.50","LAC Team","7011","Services - Supplies & Services to users","06/06/2018"
"Wolverhampton City Council","http://opendatacommunities.org/id/metropolitan-district-council/wolverhampton","Trainline","68.40","Service Director Adults","4112","Public Transport","06/06/2018"
"Wolverhampton City Council","http://opendatacommunities.org/id/metropolitan-district-council/wolverhampton","Amazon UK Marketplace","30.43","Global Budgets","5942","Equipment - Purchase","06/06/2018"
"Wolverhampton City Council","http://opendatacommunities.org/id/metropolitan-district-council/wolverhampton","GRAYSON DESIGN & PRINT","24.00","Global Budgets","5111","Stationery","06/06/2018"
"Wolverhampton City Council","http://opendatacommunities.org/id/metropolitan-district-council/wolverhampton","POST OFFICE COUNTER","134.00","Safeguarding Admin Resource","9402","Comms - Postage","06/06/2018"
"Wolverhampton City Council","http://opendatacommunities.org/id/metropolitan-district-council/wolverhampton","Virgin Trains","213.00","Central Training","4112","Public Transport","06/06/2018"
"Wolverhampton City Council","http://opendatacommunities.org/id/metropolitan-district-council/wolverhampton","Amazon EU","26.84","Welfare Rights","5969","Equipment - Purchase","06/06/2018"
"Wolverhampton City Council","http://opendatacommunities.org/id/metropolitan-district-council/wolverhampton","J VAN VLIET BIRMINGHAM","80.80","Creative Studies Delivery Area","5399","Materials for resale","06/06/2018"
"Wolverhampton City Council","http://opendatacommunities.org/id/metropolitan-district-council/wolverhampton","J VAN VLIET BIRMINGHAM","110.50","Creative Studies Delivery Area","5399","Materials","06/06/2018"
"Wolverhampton City Council","http://opendatacommunities.org/id/metropolitan-district-council/wolverhampton","J VAN VLIET BIRMINGHAM","39.45","Creative Studies Delivery Area","5399","Materials","06/06/2018"
"Wolverhampton City Council","http://opendatacommunities.org/id/metropolitan-district-council/wolverhampton","PAYPAL  TREEZY","63.00","Inclusion Support","8244","Training Expenses","06/06/2018"
"Wolverhampton City Council","http://opendatacommunities.org/id/metropolitan-district-council/wolverhampton","Trainline","34.45","Inclusion Support","4112","Public Transport","06/06/2018"
"Wolverhampton City Council","http://opendatacommunities.org/id/metropolitan-district-council/wolverhampton","GO CARZ","5.70","CIN/CP Social Work Unit - Area 5","4121","Section 17","06/06/2018"
"Wolverhampton City Council","http://opendatacommunities.org/id/metropolitan-district-council/wolverhampton","GO CARZ","8.70","CIN/CP Social Work Unit - Area 5","4121","Section 17","06/06/2018"
"Wolverhampton City Council","http://opendatacommunities.org/id/metropolitan-district-council/wolverhampton","GRO HM PASSPORT OFFICE","23.40","CIN/CP Social Work Unit - Area 7","9399","Section 17","06/06/2018"
"Wolverhampton City Council","http://opendatacommunities.org/id/metropolitan-district-council/wolverhampton","Amazon EU","45.64","SWP - Infrastructure","5969","Equipment - Purchase","06/06/2018"
"Wolverhampton City Council","http://opendatacommunities.org/id/metropolitan-district-council/wolverhampton","ASDA SUPERSTORE","40.00","CIN/CP Social Work Unit - Area 3","5411","No Recourse to Public Funds","06/06/2018"
"Wolverhampton City Council","http://opendatacommunities.org/id/metropolitan-district-council/wolverhampton","ASDA SUPERSTORE","100.00","CIN/CP Social Work Unit - Area 3","5411","No Recourse to Public Funds","06/06/2018"
"Wolverhampton City Council","http://opendatacommunities.org/id/metropolitan-district-council/wolverhampton","ASDA SUPERSTORE","160.00","CIN/CP Social Work Unit - Area 3","5411","No Recourse to Public Funds","06/06/2018"
"Wolverhampton City Council","http://opendatacommunities.org/id/metropolitan-district-council/wolverhampton","ASDA GROCERIES ONLINE","-2.10","Upper Pendeford Farm Childrens Home","5411","Provisions (Not for resale)","06/06/2018"
"Wolverhampton City Council","http://opendatacommunities.org/id/metropolitan-district-council/wolverhampton","000002200500000","150.00","Headstart Phase 3","6011","Financial Assistance In Exceptional Circ","05/06/2018"
"Wolverhampton City Council","http://opendatacommunities.org/id/metropolitan-district-council/wolverhampton","WOLVERHAMPTON CC","2.50","Headstart - Young People Engagement","7523","Parking Fees","05/06/2018"
"Wolverhampton City Council","http://opendatacommunities.org/id/metropolitan-district-council/wolverhampton","FACEBK 95TJRESC22","200.38","Admin & Support","7311","Marketing \ Non-staff advertising","05/06/2018"
"Wolverhampton City Council","http://opendatacommunities.org/id/metropolitan-district-council/wolverhampton","WOLVERHAMPTON TO","10.60","City Direct","4112","Public Transport","05/06/2018"
"Wolverhampton City Council","http://opendatacommunities.org/id/metropolitan-district-council/wolverhampton","Amazon UK Marketplace","66.58","Bradley Resource Centre","5942","Equipment - Purchase","05/06/2018"
"Wolverhampton City Council","http://opendatacommunities.org/id/metropolitan-district-council/wolverhampton","WICKES","4.15","Community Enablement","5211","Equipment - R & M","05/06/2018"
"Wolverhampton City Council","http://opendatacommunities.org/id/metropolitan-district-council/wolverhampton","B & Q 1243","4.47","Community Enablement","5211","Equipment - R & M","05/06/2018"
"Wolverhampton City Council","http://opendatacommunities.org/id/metropolitan-district-council/wolverhampton","Amazon Prime","7.99","Education And Access","5968","Subscriptions","05/06/2018"
"Wolverhampton City Council","http://opendatacommunities.org/id/metropolitan-district-council/wolverhampton","WWW.ARGOS.CO.UK","120.82","LAC Transitions Team","5310","Client Allowances","05/06/2018"
"Wolverhampton City Council","http://opendatacommunities.org/id/metropolitan-district-council/wolverhampton","ASDA GROCERIES ONLINE","-0.15","Ernest Bold Court","5411","Provisions (Not for resale)","05/06/2018"
"Wolverhampton City Council","http://opendatacommunities.org/id/metropolitan-district-council/wolverhampton","ASDA GROCERIES ONLINE","85.65","Ernest Bold Court","5411","Provisions (Not for resale)","05/06/2018"
"Wolverhampton City Council","http://opendatacommunities.org/id/metropolitan-district-council/wolverhampton","Amazon UK Marketplace","29.99","Global Budgets","5942","Equipment - Purchase","05/06/2018"
"Wolverhampton City Council","http://opendatacommunities.org/id/metropolitan-district-council/wolverhampton","TIMPSON LTD","24.17","Cycling Schemes - Bikeability","7251","Equipment - Purchase","05/06/2018"
"Wolverhampton City Council","http://opendatacommunities.org/id/metropolitan-district-council/wolverhampton","WOLVERHAMPTON CC","2.50","Headstart Phase 3","7523","Parking Fees","05/06/2018"
"Wolverhampton City Council","http://opendatacommunities.org/id/metropolitan-district-council/wolverhampton","TRAVELODGE","92.50","Pupil & Student Support","3615","Accommodation Costs","05/06/2018"
"Wolverhampton City Council","http://opendatacommunities.org/id/metropolitan-district-council/wolverhampton","Trainline","8.55","SEN Special Education Admin","4112","Public Transport","05/06/2018"
"Wolverhampton City Council","http://opendatacommunities.org/id/metropolitan-district-council/wolverhampton","Trainline","106.90","Pupil & Student Support","4112","Public Transport","05/06/2018"
"Wolverhampton City Council","http://opendatacommunities.org/id/metropolitan-district-council/wolverhampton","HOTJAR","80.49","City Direct","5045","Computing - Purchase of Hardware","05/06/2018"
"Wolverhampton City Council","http://opendatacommunities.org/id/metropolitan-district-council/wolverhampton","Trainline","195.50","Libraries","4112","Public Transport","05/06/2018"
"Wolverhampton City Council","http://opendatacommunities.org/id/metropolitan-district-council/wolverhampton","Amazon EU","50.87","Strategic ICTS (ICT Serv Budget)","5969","Equipment - Purchase","05/06/2018"
"Wolverhampton City Council","http://opendatacommunities.org/id/metropolitan-district-council/wolverhampton","PAYPAL  ROYAL MAIL","27.60","Strategic ICTS (ICT Serv Budget)","8999","Services - Professional Fees","05/06/2018"
"Wolverhampton City Council","http://opendatacommunities.org/id/metropolitan-district-council/wolverhampton","WOLVERHAMPTON TO","132.65","Mental Health Assessment & Care Mgmt","4112","Public Transport","05/06/2018"
"Wolverhampton City Council","http://opendatacommunities.org/id/metropolitan-district-council/wolverhampton","WOLVERHAMPTON TO","182.00","Mental Health Assessment & Care Mgmt","4112","Public Transport","05/06/2018"
"Wolverhampton City Council","http://opendatacommunities.org/id/metropolitan-district-council/wolverhampton","Amazon UK Marketplace","45.74","LAC Transitions Team","5942","Client Allowances","05/06/2018"
"Wolverhampton City Council","http://opendatacommunities.org/id/metropolitan-district-council/wolverhampton","Amazon EU","32.29","EIP Locality 1","5969","Equipment - Purchase","05/06/2018"
"Wolverhampton City Council","http://opendatacommunities.org/id/metropolitan-district-council/wolverhampton","BEATSABAR MUSIC PROJEC","200.00","Youth Offending Team","5733","Equipment - Purchase","05/06/2018"
"Wolverhampton City Council","http://opendatacommunities.org/id/metropolitan-district-council/wolverhampton","BEATSABAR MUSIC PROJEC","116.60","Youth Offending Team","5733","Equipment - Purchase","05/06/2018"
"Wolverhampton City Council","http://opendatacommunities.org/id/metropolitan-district-council/wolverhampton","MARKS&SPENCER PLC SACA","2.40","Mayoral Expenses","5411","Hospitality","05/06/2018"
"Wolverhampton City Council","http://opendatacommunities.org/id/metropolitan-district-council/wolverhampton","ARGOS LTD","31.23","LAC Transitions Team","5310","Client Allowances","05/06/2018"
"Wolverhampton City Council","http://opendatacommunities.org/id/metropolitan-district-council/wolverhampton","GRO HM PASSPORT OFFICE","7.71","LAC Transitions Team","9399","Client Allowances","05/06/2018"
"Wolverhampton City Council","http://opendatacommunities.org/id/metropolitan-district-council/wolverhampton","Virgin Trains","77.60","Members Expenses","4112","Public Transport","05/06/2018"
"Wolverhampton City Council","http://opendatacommunities.org/id/metropolitan-district-council/wolverhampton","Amazon EU","56.67","Northicote Farm","5969","Clothing / Uniforms","05/06/2018"
"Wolverhampton City Council","http://opendatacommunities.org/id/metropolitan-district-council/wolverhampton","Amazon UK Marketplace","31.17","Northicote Farm","5942","Clothing / Uniforms","05/06/2018"
"Wolverhampton City Council","http://opendatacommunities.org/id/metropolitan-district-council/wolverhampton","Trainline","198.00","Vulnerable Young Persons Team","4112","Public Transport","05/06/2018"
"Wolverhampton City Council","http://opendatacommunities.org/id/metropolitan-district-council/wolverhampton","Amazon UK Marketplace","5.31","Bradley Resource Centre","5942","Equipment - Purchase","05/06/2018"
"Wolverhampton City Council","http://opendatacommunities.org/id/metropolitan-district-council/wolverhampton","Amazon UK Marketplace","15.31","Bradley Resource Centre","5942","Equipment - Purchase","05/06/2018"
"Wolverhampton City Council","http://opendatacommunities.org/id/metropolitan-district-council/wolverhampton","WWW.ARGOS.CO.UK","27.99","Intensive Family Support Team","5310","Equipment - Purchase","04/06/2018"
"Wolverhampton City Council","http://opendatacommunities.org/id/metropolitan-district-council/wolverhampton","Virgin Trains","93.60","Fostering Team & Allowances","4112","Public Transport","04/06/2018"
"Wolverhampton City Council","http://opendatacommunities.org/id/metropolitan-district-council/wolverhampton","CUMMINGS BROTHERS LOCK","23.33","Caretakers Community Centre","7399","Fixtures and Fittings - R&M","04/06/2018"
"Wolverhampton City Council","http://opendatacommunities.org/id/metropolitan-district-council/wolverhampton","HALFORDS ON LINE","38.10","CIN/CP Social Work Unit - Area 5","5940","Section 17","04/06/2018"
"Wolverhampton City Council","http://opendatacommunities.org/id/metropolitan-district-council/wolverhampton","UK GAMES EXPO LTD","13.00","Youth Offending Team","7399","Equipment - Purchase","04/06/2018"
"Wolverhampton City Council","http://opendatacommunities.org/id/metropolitan-district-council/wolverhampton","GOOGLE  SVCSAPPS_wolve","9.90","Visitor Economy - Development","5968","Subscriptions","04/06/2018"
"Wolverhampton City Council","http://opendatacommunities.org/id/metropolitan-district-council/wolverhampton","Amazon UK Marketplace","49.82","Electoral Registration","5942","Books","04/06/2018"
"Wolverhampton City Council","http://opendatacommunities.org/id/metropolitan-district-council/wolverhampton","Virgin Trains","77.60","Fostering Team & Allowances","4112","Public Transport","04/06/2018"
"Wolverhampton City Council","http://opendatacommunities.org/id/metropolitan-district-council/wolverhampton","CLOCKING SYSTEM","198.00","Ground Maintenance East","5085","Equipment - Purchase","04/06/2018"
"Wolverhampton City Council","http://opendatacommunities.org/id/metropolitan-district-council/wolverhampton","PRODUCT SUPPORT AG","6.66","Headstart - Young People Engagement","5968","Computing - Maint Agreements","04/06/2018"
"Wolverhampton City Council","http://opendatacommunities.org/id/metropolitan-district-council/wolverhampton","Amazon UK Marketplace","79.10","Central Baths","5942","Books","04/06/2018"
"Wolverhampton City Council","http://opendatacommunities.org/id/metropolitan-district-council/wolverhampton","PRODUCT SUPPORT AG","6.66","Headstart - Young People Engagement","5968","Computing - Maint Agreements","04/06/2018"
"Wolverhampton City Council","http://opendatacommunities.org/id/metropolitan-district-council/wolverhampton","WWW.WMCA.CO.UK","56.50","IMPACT","9399","Services - Fees and Charges","04/06/2018"
"Wolverhampton City Council","http://opendatacommunities.org/id/metropolitan-district-council/wolverhampton","ADULT EDUCATION SV","40.00","IMPACT","8299","Training Expenses","04/06/2018"
"Wolverhampton City Council","http://opendatacommunities.org/id/metropolitan-district-council/wolverhampton","CITY OF WOLVERHAMPTON","31.00","IMPACT","9399","Services - Fees and Charges","04/06/2018"
"Wolverhampton City Council","http://opendatacommunities.org/id/metropolitan-district-council/wolverhampton","WOLVERHAMPTON CC","3.33","IMPACT","7523","Car Allowances","04/06/2018"
"Wolverhampton City Council","http://opendatacommunities.org/id/metropolitan-district-council/wolverhampton","SCREWFIX DIRECT","102.43","AES Staff Development","5211","Materials","04/06/2018"
"Wolverhampton City Council","http://opendatacommunities.org/id/metropolitan-district-council/wolverhampton","ASDA SUPERSTORE","4.05","Mayoral Expenses","5411","Hospitality","04/06/2018"
"Wolverhampton City Council","http://opendatacommunities.org/id/metropolitan-district-council/wolverhampton","WILKO RETAIL LIMIT","3.00","Admin & Support","5722","Stationery","04/06/2018"
"Wolverhampton City Council","http://opendatacommunities.org/id/metropolitan-district-council/wolverhampton","avangate.com","40.97","Admin & Support","5734","Computing - Purchase of Software","04/06/2018"
"Wolverhampton City Council","http://opendatacommunities.org/id/metropolitan-district-council/wolverhampton","ARGOS RETAIL GROUP","24.98","LAC Transitions Team","5310","Client Allowances","04/06/2018"
"Wolverhampton City Council","http://opendatacommunities.org/id/metropolitan-district-council/wolverhampton","FIRST CHOICE CATERING","161.36","Education Catering - General Overheads","5065","Equipment - R & M","04/06/2018"
"Wolverhampton City Council","http://opendatacommunities.org/id/metropolitan-district-council/wolverhampton","THE NEW BRIDGE GUEST H","50.00","MASH","7011","Section 17","04/06/2018"
"Wolverhampton City Council","http://opendatacommunities.org/id/metropolitan-district-council/wolverhampton","SCREWFIX DIRECT LT","45.81","Culwell Street Depot","5211","Materials","04/06/2018"
"Wolverhampton City Council","http://opendatacommunities.org/id/metropolitan-district-council/wolverhampton","Amazon EU","41.43","EIP Locality 1","5969","Equipment - Purchase","04/06/2018"
"Wolverhampton City Council","http://opendatacommunities.org/id/metropolitan-district-council/wolverhampton","Amazon EU","20.90","EIP Locality 1","5969","Equipment - Purchase","04/06/2018"
"Wolverhampton City Council","http://opendatacommunities.org/id/metropolitan-district-council/wolverhampton","Amazon UK Marketplace","39.95","Bradley Resource Centre","5942","Equipment - Purchase","04/06/2018"
"Wolverhampton City Council","http://opendatacommunities.org/id/metropolitan-district-council/wolverhampton","FRANCIS COMMERCIAL KIT","204.75","Civic Centre","1520","R&M - Departmental response (Internal)","04/06/2018"
"Wolverhampton City Council","http://opendatacommunities.org/id/metropolitan-district-council/wolverhampton","PREMIER INN","76.00","LAC Team","3811","Services - Supplies & Services to users","04/06/2018"
"Wolverhampton City Council","http://opendatacommunities.org/id/metropolitan-district-council/wolverhampton","ASDA GROCERIES ONLINE","-0.55","Ernest Bold Court","5411","Provisions (Not for resale)","04/06/2018"
"Wolverhampton City Council","http://opendatacommunities.org/id/metropolitan-district-council/wolverhampton","ASDA GROCERIES ONLINE","95.47","Ernest Bold Court","5411","Provisions (Not for resale)","04/06/2018"
"Wolverhampton City Council","http://opendatacommunities.org/id/metropolitan-district-council/wolverhampton","PAPYRUS (UK)","250.00","Safeguarding Partnership Board","8398","Services - Supplies & Services to users","04/06/2018"
"Wolverhampton City Council","http://opendatacommunities.org/id/metropolitan-district-council/wolverhampton","CITY OF WOLVERHAMPTON","10.00","Legal Services","9399","Services - Professional Fees","04/06/2018"
"Wolverhampton City Council","http://opendatacommunities.org/id/metropolitan-district-council/wolverhampton","LOYD 37 CHURCH STREET","200.00","Duke Street Bungalows","6011","Provisions (Not for resale)","04/06/2018"
"Wolverhampton City Council","http://opendatacommunities.org/id/metropolitan-district-council/wolverhampton","PAYPAL  HORNER SHEA","71.95","Northicote Farm","5099","Equipment - R & M","04/06/2018"
"Wolverhampton City Council","http://opendatacommunities.org/id/metropolitan-district-council/wolverhampton","J VAN VLIET STOKE ON T","31.80","Creative Studies Delivery Area","5399","Equipment - Purchase","04/06/2018"
"Wolverhampton City Council","http://opendatacommunities.org/id/metropolitan-district-council/wolverhampton","Trainline","49.00","CIN/CP Social Work Unit - Area 4","4112","Section 17","04/06/2018"
"Wolverhampton City Council","http://opendatacommunities.org/id/metropolitan-district-council/wolverhampton","GRO HM PASSPORT OFFICE","-7.71","LAC Transitions Team","9399","Client Allowances","04/06/2018"
"Wolverhampton City Council","http://opendatacommunities.org/id/metropolitan-district-council/wolverhampton","GRO HM PASSPORT OFFICE","19.50","LAC Transitions Team","9399","Client Allowances","04/06/2018"
"Wolverhampton City Council","http://opendatacommunities.org/id/metropolitan-district-council/wolverhampton","WWW.GOV.UK","10.00","Private Sector Housing","8999","Services - Professional Fees","04/06/2018"
"Wolverhampton City Council","http://opendatacommunities.org/id/metropolitan-district-council/wolverhampton","Amazon EU","124.95","Licensing - General","5969","Equipment - Purchase","04/06/2018"
"Wolverhampton City Council","http://opendatacommunities.org/id/metropolitan-district-council/wolverhampton","Amazon EU","9.15","Mayoral Expenses","5969","Equipment - Purchase","04/06/2018"
"Wolverhampton City Council","http://opendatacommunities.org/id/metropolitan-district-council/wolverhampton","Amazon UK Marketplace","19.98","Members Expenses","5942","Equipment - Purchase","04/06/2018"
"Wolverhampton City Council","http://opendatacommunities.org/id/metropolitan-district-council/wolverhampton","Amazon UK Marketplace","3.89","Members Expenses","5942","Equipment - Purchase","04/06/2018"
"Wolverhampton City Council","http://opendatacommunities.org/id/metropolitan-district-council/wolverhampton","PREMIER INN","69.00","LAC Transitions Team","3811","Client Allowances","01/06/2018"
"Wolverhampton City Council","http://opendatacommunities.org/id/metropolitan-district-council/wolverhampton","JOHNSONS","9.17","Cemeteries","7210","Equipment - R & M","01/06/2018"
"Wolverhampton City Council","http://opendatacommunities.org/id/metropolitan-district-council/wolverhampton","B&M RETAIL","102.83","LAC Transitions Team","5310","Client Allowances","01/06/2018"
"Wolverhampton City Council","http://opendatacommunities.org/id/metropolitan-district-council/wolverhampton","Virgin Trains","190.50","Adoption and Residence Team & Allowances","4112","Public Transport","01/06/2018"
"Wolverhampton City Council","http://opendatacommunities.org/id/metropolitan-district-council/wolverhampton","Virgin Trains","39.00","Corporate Procurement Unit","4112","Public Transport","01/06/2018"
"Wolverhampton City Council","http://opendatacommunities.org/id/metropolitan-district-council/wolverhampton","ASDA GROCERIES ONLINE","-5.41","Upper Pendeford Farm Childrens Home","5411","Provisions (Not for resale)","01/06/2018"
"Wolverhampton City Council","http://opendatacommunities.org/id/metropolitan-district-council/wolverhampton","ASDA GROCERIES ONLINE","155.36","Upper Pendeford Farm Childrens Home","5411","Provisions (Not for resale)","01/06/2018"
"Wolverhampton City Council","http://opendatacommunities.org/id/metropolitan-district-council/wolverhampton","Virgin Trains","69.50","Strategic Asset Management - General","4112","Public Transport","01/06/2018"
"Wolverhampton City Council","http://opendatacommunities.org/id/metropolitan-district-council/wolverhampton","AMAZON SVCS EU-UK AMAZ","70.97","Bradley Resource Centre","5942","Equipment - Purchase","01/06/2018"
"Wolverhampton City Council","http://opendatacommunities.org/id/metropolitan-district-council/wolverhampton","Virgin Trains","8.30","Children & Young People Support Costs","4112","Public Transport","01/06/2018"
"Wolverhampton City Council","http://opendatacommunities.org/id/metropolitan-district-council/wolverhampton","T K MAXX","114.12","Duke Street Bungalows","5331","Equipment - Purchase","01/06/2018"
"Wolverhampton City Council","http://opendatacommunities.org/id/metropolitan-district-council/wolverhampton","SAINSBURYS 2040","21.67","Duke Street Bungalows","5411","Equipment - Purchase","01/06/2018"
"Wolverhampton City Council","http://opendatacommunities.org/id/metropolitan-district-council/wolverhampton","VANGUARD CONSULTIN","195.00","Member Training","7392","Training Expenses","01/06/2018"
"Wolverhampton City Council","http://opendatacommunities.org/id/metropolitan-district-council/wolverhampton","DECATHLON UK","518.98","Upper Pendeford Farm Childrens Home","5941","Equipment - Purchase","01/06/2018"
"Wolverhampton City Council","http://opendatacommunities.org/id/metropolitan-district-council/wolverhampton","GO CARZ","161.10","MASH","4121","Client Transport","01/06/2018"
"Wolverhampton City Council","http://opendatacommunities.org/id/metropolitan-district-council/wolverhampton","WWW.FTA.CO.UK","96.95","Fleet Management","8999","Services - Professional Fees","01/06/2018"
"Wolverhampton City Council","http://opendatacommunities.org/id/metropolitan-district-council/wolverhampton","Amazon UK Marketplace","9.99","Members Expenses","5942","Equipment - Purchase","01/06/2018"
"Wolverhampton City Council","http://opendatacommunities.org/id/metropolitan-district-council/wolverhampton","PAYPAL  HORNER SHEA","98.95","Northicote Farm","5099","Equipment - R & M","01/06/2018"
"Wolverhampton City Council","http://opendatacommunities.org/id/metropolitan-district-council/wolverhampton","Amazon UK Marketplace","31.15","Northicote Farm","5942","Clothing / Uniforms","01/06/2018"
"Wolverhampton City Council","http://opendatacommunities.org/id/metropolitan-district-council/wolverhampton","Amazon UK Marketplace","31.42","Northicote Farm","5942","Clothing / Uniforms","01/06/2018"
"Wolverhampton City Council","http://opendatacommunities.org/id/metropolitan-district-council/wolverhampton","ROYAL BK OF SCOTLAND","250.00","CIN/CP Social Work Unit - Area 6","6011","No Recourse to Public Funds","01/06/2018"
"Wolverhampton City Council","http://opendatacommunities.org/id/metropolitan-district-council/wolverhampton","FACEBK H8EBNE6G52","29.40","Audience Development","7311","Marketing \ Non-staff advertising","01/06/2018"
"Wolverhampton City Council","http://opendatacommunities.org/id/metropolitan-district-council/wolverhampton","FACEBK G8EBNE6G52","32.18","Civic Halls Non Direct Management A/C","7311","Marketing \ Non-staff advertising","01/06/2018"
"Wolverhampton City Council","http://opendatacommunities.org/id/metropolitan-district-council/wolverhampton","Amazon UK Marketplace","17.07","EIP Locality 4","5942","Equipment - Purchase","01/06/2018"
"Wolverhampton City Council","http://opendatacommunities.org/id/metropolitan-district-council/wolverhampton","FACEBK HA4LMG2BR2","24.52","Communications & Marketing - General","7311","Marketing \ Non-staff advertising","01/06/2018"
"Wolverhampton City Council","http://opendatacommunities.org/id/metropolitan-district-council/wolverhampton","FACEBK DA4LMG2BR2","285.55","Communications & Marketing - General","7311","Marketing \ Non-staff advertising","01/06/2018"
"Wolverhampton City Council","http://opendatacommunities.org/id/metropolitan-district-council/wolverhampton","FACEBK WT6AMESA82","45.33","WV Active Marketing","7311","Marketing \ Non-staff advertising","01/06/2018"
"Wolverhampton City Council","http://opendatacommunities.org/id/metropolitan-district-council/wolverhampton","FACEBK VT6AMESA82","142.39","WV Active Marketing","7311","Marketing \ Non-staff advertising","01/06/2018"
"Wolverhampton City Council","http://opendatacommunities.org/id/metropolitan-district-council/wolverhampton","E01577400000000","50.00","Headstart - Young People Engagement","6011","Financial Assistance In Exceptional Circ","01/06/2018"
"Wolverhampton City Council","http://opendatacommunities.org/id/metropolitan-district-council/wolverhampton","POST OFFICE COUNTER","55.68","Macmillan Welfare Rights","9402","Comms - Postage","01/06/2018"
